{"text_format":"1","workbook":"xlsx","n_sheets":2,"sheets":["Feuil1","Feuil2"],"not_rendered":{"charts":0,"images":0,"macros":1,"external_links":0,"defined_names":0,"comments":0,"pivot_tables":0},"unopened":[],"bounds":{"document_bytes":16777216,"sheet_cells":100000,"rows_first":2000,"rows_last":500,"rows_between":2000,"halvings":0,"cell_chars":16384,"cell_head_chars":4096},"cells_cut":0,"cells_raw":0,"read":"whole","date_system":"1900"}

{"sheet":"Feuil1","index":0,"n_rows":828,"n_cols":6,"rows_kept":828,"cut":false,"hidden":false,"merged":[]}
[]
[null,"LISTE 1",null,"LISTE 2",null,"LISTE 3"]
[null,"1203 MERZNIZI SAMIR",null,"1007 AYOUB SIDALI",null,"2204 SOUDANI YACINE"]
[null,"1203 MERZNIZI SAMIR",null,null,null,"2223 BENAMMAR MONJI"]
[null,"1215 ELIAS FATHI",null,null,null,"3207 ELIAS FATHI"]
[null,null,null,null,null,"3222 AHMAD MOHAMED"]
[null,null,null,null,null,"3122 BISI WA BISI MURPHI"]
[null,null,null,"LISTE 5",null,"3204 BOUGHARA CHAIB"]
[null,null,null,"3115 JOVANI SHKELZEN",null,"3215 AOURAGH RACHID"]
[null,"LISTE 4",null,"3119 ANAS DABI",null,"3216 AZARIAHI SOUFIANE"]
[null,"3108 MAMBOUR FRANCK",null,"3122 BISI WA BISI MURPHI"]
[null,"3110 VANLANGENHOVE NICOLAS",null,"1015 JAAOURE SOUFIANE"]
[null,"3112 EL MALKI FOUAD",null,"1006 MOURABIT MOHAMED"]
[null,"3114 CRAPANZANO ALESSANDRO",null,"2122 EL KANDOUSSI NACER"]
[null,"3115 JOVANI SHKELZEN",null,"2204 SOUDANI YACINE",null,"LISTE 6"]
[null,"3119 ANAS DABI",null,"2223 BENAMMAR MONJI",null,"1015 JAAOURE SOUFIANE"]
[null,"3122 BISI WA BISI MURPHI",null,"3207 ELIAS FATHI",null,"1006 MOURABIT MOHAMED"]
[null,"3204 BOUGHARA CHAIB",null,"1007 AYOUB SIDALI",null,"1003 NJAIM RONALD"]
[null,"3215 AOURAGH RACHID",null,"1004 MITROVIC BENDA",null,"2122 EL KANDOUSSI NACER"]
[null,"3216 AZARIAHI SOUFIANE",null,"1015 JAAOURE SOUFIANE",null,"2204 SOUDANI YACINE"]
[null,null,null,"1006 MOURABIT MOHAMED",null,"2223 BENAMMAR MONJI"]
[null,null,null,"1003 NJAIM RONALD",null,"3215 AOURAGH RACHID"]
[null,null,null,"1203 MERZNIZI SAMIR",null,"3216 AZARIAHI SOUFIANE"]
[null,null,null,"1203 MERZNIZI SAMIR",null,"3122 BISI WA BISI MURPHI"]
[null,"LISTE 7",null,"1215 ELIAS FATHI",null,"3119 ANAS DABI"]
[null,"1007 AYOUB SIDALI",null,"1210 PASHI KABUNDA",null,"1007 AYOUB SIDALI"]
[null,"1004 MITROVIC BENDA",null,"1211 RAGA DADA",null,"1004 MITROVIC BENDA"]
[null,"1015 JAAOURE SOUFIANE",null,"1216 FRADI FARID",null,"1015 JAAOURE SOUFIANE"]
[null,"1006 MOURABIT MOHAMED",null,"1223 JALOKA KHALID",null,"1006 MOURABIT MOHAMED"]
[null,"1003 NJAIM RONALD",null,"2122 EL KANDOUSSI NACER",null,"1003 NJAIM RONALD"]
[]
[]
[]
[]
[null,"LISTE 10",null,null,null,"LISTE 9"]
[null,"3108 MAMBOUR FRANCK",null,null,null,"1007 AYOUB SIDALI"]
[null,"3110 VANLANGENHOVE NICOLAS",null,null,null,"1004 MITROVIC BENDA"]
[null,"3112 EL MALKI FOUAD",null,null,null,"1015 JAAOURE SOUFIANE"]
[null,"3114 CRAPANZANO ALESSANDRO",null,null,null,"1006 MOURABIT MOHAMED"]
[null,"3115 JOVANI SHKELZEN",null,null,null,"1003 NJAIM RONALD"]
[null,"3119 ANAS DABI"]
[null,"3122 BISI WA BISI MURPHI"]
[null,"3204 BOUGHARA CHAIB"]
[null,"3215 AOURAGH RACHID"]
[null,"3216 AZARIAHI SOUFIANE"]
[]
[]
[]
[]
[]
[]
[]
[null,"LISTE 13",null,"LISTE 8",null,"LISTE 12"]
[null,"3108 MAMBOUR FRANCK",null,"1203 MERZNIZI SAMIR",null,"1015 JAAOURE SOUFIANE"]
[null,"3110 VANLANGENHOVE NICOLAS",null,"1215 ELIAS FATHI",null,"1006 MOURABIT MOHAMED"]
[null,"3112 EL MALKI FOUAD",null,"1210 PASHI KABUNDA",null,"1003 NJAIM RONALD"]
[null,"3114 CRAPANZANO ALESSANDRO",null,"1211 RAGA DADA",null,"2122 EL KANDOUSSI NACER"]
[null,"3115 JOVANI SHKELZEN",null,"1216 FRADI FARID",null,"2204 SOUDANI YACINE"]
[null,"3119 ANAS DABI",null,"1223 JALOKA KHALID",null,"2223 BENAMMAR MONJI"]
[null,"3122 BISI WA BISI MURPHI",null,"2122 EL KANDOUSSI NACER",null,"3215 AOURAGH RACHID"]
[null,"3204 BOUGHARA CHAIB",null,"2204 SOUDANI YACINE",null,"3216 AZARIAHI SOUFIANE"]
[null,"3215 AOURAGH RACHID",null,"2223 BENAMMAR MONJI",null,"3122 BISI WA BISI MURPHI"]
[null,"3216 AZARIAHI SOUFIANE",null,"3207 ELIAS FATHI",null,"3119 ANAS DABI"]
[null,null,null,"3222 AHMAD MOHAMED"]
[null,null,null,"3122 BISI WA BISI MURPHI"]
[null,null,null,"3204 BOUGHARA CHAIB"]
[null,null,null,"3215 AOURAGH RACHID"]
[null,"LISTE 16",null,"3216 AZARIAHI SOUFIANE",null,"LISTE 15"]
[null,"1203 MERZNIZI SAMIR",null,null,null,"1015 JAAOURE SOUFIANE"]
[null,"1215 ELIAS FATHI",null,null,null,"1006 MOURABIT MOHAMED"]
[null,"1210 PASHI KABUNDA",null,null,null,"1003 NJAIM RONALD"]
[null,"1211 RAGA DADA",null,null,null,"2122 EL KANDOUSSI NACER"]
[null,"1216 FRADI FARID",null,"LISTE 11",null,"2204 SOUDANI YACINE"]
[null,"1223 JALOKA KHALID",null,"3115 JOVANI SHKELZEN",null,"2223 BENAMMAR MONJI"]
[null,"2122 EL KANDOUSSI NACER",null,"3119 ANAS DABI",null,"3215 AOURAGH RACHID"]
[null,"2204 SOUDANI YACINE",null,"3122 BISI WA BISI MURPHI",null,"3216 AZARIAHI SOUFIANE"]
[null,"2223 BENAMMAR MONJI",null,"1015 JAAOURE SOUFIANE",null,"3122 BISI WA BISI MURPHI"]
[null,"3207 ELIAS FATHI",null,"1006 MOURABIT MOHAMED",null,"3119 ANAS DABI"]
[null,"3222 AHMAD MOHAMED",null,"2122 EL KANDOUSSI NACER"]
[null,"3122 BISI WA BISI MURPHI",null,"2204 SOUDANI YACINE"]
[null,"3204 BOUGHARA CHAIB",null,"2223 BENAMMAR MONJI"]
[null,null,null,"3207 ELIAS FATHI"]
[null,null,null,null,null,"LISTE 18"]
[null,null,null,null,null,"1007 AYOUB SIDALI"]
[null,null,null,null,null,"1004 MITROVIC BENDA"]
[null,"LISTE 19",null,null,null,"1015 JAAOURE SOUFIANE"]
[null,"3108 MAMBOUR FRANCK",null,"LISTE 14",null,"1006 MOURABIT MOHAMED"]
[null,"3110 VANLANGENHOVE NICOLAS",null,"3115 JOVANI SHKELZEN",null,"1003 NJAIM RONALD"]
[null,"3112 EL MALKI FOUAD",null,"3119 ANAS DABI"]
[null,"3114 CRAPANZANO ALESSANDRO",null,"3122 BISI WA BISI MURPHI"]
[null,"3115 JOVANI SHKELZEN",null,"1015 JAAOURE SOUFIANE"]
[null,"3119 ANAS DABI",null,"1006 MOURABIT MOHAMED"]
[null,"3122 BISI WA BISI MURPHI",null,"2122 EL KANDOUSSI NACER"]
[null,"3204 BOUGHARA CHAIB",null,"2204 SOUDANI YACINE"]
[null,"3215 AOURAGH RACHID",null,"2223 BENAMMAR MONJI"]
[null,"3216 AZARIAHI SOUFIANE",null,"3207 ELIAS FATHI"]
[]
[]
[]
[]
[]
[]
[]
[null,"LISTE 22",null,"LISTE 17",null,"LISTE 21"]
[null,"3108 MAMBOUR FRANCK",null,"1007 AYOUB SIDALI",null,"1015 JAAOURE SOUFIANE"]
[null,"3110 VANLANGENHOVE NICOLAS",null,"1004 MITROVIC BENDA",null,"1006 MOURABIT MOHAMED"]
[null,"3112 EL MALKI FOUAD",null,"1015 JAAOURE SOUFIANE",null,"1003 NJAIM RONALD"]
[null,"3114 CRAPANZANO ALESSANDRO",null,"1006 MOURABIT MOHAMED",null,"2122 EL KANDOUSSI NACER"]
[null,"3115 JOVANI SHKELZEN",null,"1003 NJAIM RONALD",null,"2204 SOUDANI YACINE"]
[null,"3119 ANAS DABI",null,"3119 ANAS DABI",null,"2223 BENAMMAR MONJI"]
[null,"3122 BISI WA BISI MURPHI",null,"3122 BISI WA BISI MURPHI",null,"3215 AOURAGH RACHID"]
[null,"3204 BOUGHARA CHAIB",null,"3204 BOUGHARA CHAIB",null,"3216 AZARIAHI SOUFIANE"]
[null,"3215 AOURAGH RACHID",null,"1007 AYOUB SIDALI",null,"3122 BISI WA BISI MURPHI"]
[null,"3216 AZARIAHI SOUFIANE",null,"1004 MITROVIC BENDA",null,"3119 ANAS DABI"]
[null,null,null,"1015 JAAOURE SOUFIANE"]
[null,null,null,"1006 MOURABIT MOHAMED"]
[null,null,null,"1003 NJAIM RONALD"]
[]
[null,"LISTE 25",null,null,null,"LISTE 24"]
[null,"1007 AYOUB SIDALI",null,null,null,"1015 JAAOURE SOUFIANE"]
[null,"1004 MITROVIC BENDA",null,null,null,"1006 MOURABIT MOHAMED"]
[null,"1015 JAAOURE SOUFIANE",null,"LISTE 20",null,"1003 NJAIM RONALD"]
[null,"1006 MOURABIT MOHAMED",null,"3115 JOVANI SHKELZEN",null,"2122 EL KANDOUSSI NACER"]
[null,"1003 NJAIM RONALD",null,"3119 ANAS DABI",null,"2204 SOUDANI YACINE"]
[null,null,null,"3122 BISI WA BISI MURPHI",null,"2223 BENAMMAR MONJI"]
[null,null,null,"1015 JAAOURE SOUFIANE",null,"3215 AOURAGH RACHID"]
[null,null,null,"1006 MOURABIT MOHAMED",null,"3216 AZARIAHI SOUFIANE"]
[null,null,null,"2122 EL KANDOUSSI NACER",null,"3122 BISI WA BISI MURPHI"]
[null,"LISTE 28",null,"2204 SOUDANI YACINE",null,"3119 ANAS DABI"]
[null,"1007 AYOUB SIDALI",null,"2223 BENAMMAR MONJI"]
[null,"1004 MITROVIC BENDA",null,"3207 ELIAS FATHI"]
[null,"1015 JAAOURE SOUFIANE"]
[null,"1006 MOURABIT MOHAMED"]
[null,"1003 NJAIM RONALD",null,null,null,"LISTE 27"]
[null,null,null,null,null,"1015 JAAOURE SOUFIANE"]
[null,null,null,null,null,"1006 MOURABIT MOHAMED"]
[null,null,null,null,null,"1003 NJAIM RONALD"]
[null,null,null,null,null,"2122 EL KANDOUSSI NACER"]
[null,null,null,null,null,"2204 SOUDANI YACINE"]
[null,null,null,null,null,"2223 BENAMMAR MONJI"]
[null,null,null,null,null,"3215 AOURAGH RACHID"]
[null,null,null,null,null,"3216 AZARIAHI SOUFIANE"]
[null,null,null,null,null,"3122 BISI WA BISI MURPHI"]
[null,null,null,null,null,"3119 ANAS DABI"]
[]
[]
[]
[]
[]
[]
[]
[]
[]
[]
[null,"LISTE 31",null,"LISTE 23",null,"LISTE 30"]
[null,"3115 JOVANI SHKELZEN",null,"3115 JOVANI SHKELZEN",null,"1007 AYOUB SIDALI"]
[null,"3119 ANAS DABI",null,"3119 ANAS DABI",null,"1004 MITROVIC BENDA"]
[null,"3122 BISI WA BISI MURPHI",null,"3122 BISI WA BISI MURPHI",null,"1015 JAAOURE SOUFIANE"]
[null,"1015 JAAOURE SOUFIANE",null,"1015 JAAOURE SOUFIANE",null,"1006 MOURABIT MOHAMED"]
[null,"1006 MOURABIT MOHAMED",null,"1006 MOURABIT MOHAMED",null,"1003 NJAIM RONALD"]
[null,"2122 EL KANDOUSSI NACER",null,"2122 EL KANDOUSSI NACER"]
[null,"2204 SOUDANI YACINE",null,"2204 SOUDANI YACINE"]
[null,"2223 BENAMMAR MONJI",null,"2223 BENAMMAR MONJI"]
[null,"3207 ELIAS FATHI",null,"3207 ELIAS FATHI"]
[null,"1007 AYOUB SIDALI",null,"1007 AYOUB SIDALI",null,"LISTE 33"]
[null,"1004 MITROVIC BENDA",null,"1004 MITROVIC BENDA",null,"1007 AYOUB SIDALI"]
[null,"1015 JAAOURE SOUFIANE",null,"1015 JAAOURE SOUFIANE",null,"1004 MITROVIC BENDA"]
[null,"1006 MOURABIT MOHAMED",null,"1006 MOURABIT MOHAMED",null,"1015 JAAOURE SOUFIANE"]
[null,"1003 NJAIM RONALD",null,"1003 NJAIM RONALD",null,"1006 MOURABIT MOHAMED"]
[null,"1203 MERZNIZI SAMIR",null,"1203 MERZNIZI SAMIR",null,"1003 NJAIM RONALD"]
[null,"1203 MERZNIZI SAMIR",null,"1203 MERZNIZI SAMIR"]
[null,"1215 ELIAS FATHI",null,"1215 ELIAS FATHI"]
[null,"1210 PASHI KABUNDA",null,"1210 PASHI KABUNDA"]
[null,"1211 RAGA DADA",null,"1211 RAGA DADA"]
[null,"1216 FRADI FARID",null,"1216 FRADI FARID",null,"LISTE 36"]
[null,"1223 JALOKA KHALID",null,"1223 JALOKA KHALID",null,"3115 JOVANI SHKELZEN"]
[null,"2122 EL KANDOUSSI NACER",null,"2122 EL KANDOUSSI NACER",null,"3119 ANAS DABI"]
[null,null,null,null,null,"3122 BISI WA BISI MURPHI"]
[null,null,null,null,null,"1015 JAAOURE SOUFIANE"]
[null,null,null,null,null,"1006 MOURABIT MOHAMED"]
[null,null,null,null,null,"2122 EL KANDOUSSI NACER"]
[null,"LISTE 34",null,"LISTE 26",null,"2204 SOUDANI YACINE"]
[null,"1203 MERZNIZI SAMIR",null,"1203 MERZNIZI SAMIR",null,"2223 BENAMMAR MONJI"]
[null,"1215 ELIAS FATHI",null,"1215 ELIAS FATHI",null,"3207 ELIAS FATHI"]
[null,"1210 PASHI KABUNDA",null,"1210 PASHI KABUNDA",null,"1007 AYOUB SIDALI"]
[null,"1211 RAGA DADA",null,"1211 RAGA DADA",null,"1004 MITROVIC BENDA"]
[null,"1216 FRADI FARID",null,"1216 FRADI FARID",null,"1015 JAAOURE SOUFIANE"]
[null,"1223 JALOKA KHALID",null,"1223 JALOKA KHALID",null,"1006 MOURABIT MOHAMED"]
[null,"2122 EL KANDOUSSI NACER",null,"2122 EL KANDOUSSI NACER",null,"1003 NJAIM RONALD"]
[null,"2204 SOUDANI YACINE",null,"2204 SOUDANI YACINE",null,"1203 MERZNIZI SAMIR"]
[null,"2223 BENAMMAR MONJI",null,"2223 BENAMMAR MONJI",null,"1203 MERZNIZI SAMIR"]
[null,"3207 ELIAS FATHI",null,"3207 ELIAS FATHI",null,"1215 ELIAS FATHI"]
[null,"3222 AHMAD MOHAMED",null,"3222 AHMAD MOHAMED",null,"1210 PASHI KABUNDA"]
[null,"3122 BISI WA BISI MURPHI",null,"3122 BISI WA BISI MURPHI",null,"1211 RAGA DADA"]
[null,"3204 BOUGHARA CHAIB",null,"3204 BOUGHARA CHAIB",null,"1216 FRADI FARID"]
[null,"3215 AOURAGH RACHID",null,"3215 AOURAGH RACHID",null,"1223 JALOKA KHALID"]
[null,"3216 AZARIAHI SOUFIANE",null,"3216 AZARIAHI SOUFIANE",null,"2122 EL KANDOUSSI NACER"]
[]
[]
[]
[]
[]
[]
[]
[]
[null,"LISTE 37",null,"LISTE 29",null,"LISTE 39"]
[null,"1015 JAAOURE SOUFIANE",null,"1203 MERZNIZI SAMIR",null,"1007 AYOUB SIDALI"]
[null,"1006 MOURABIT MOHAMED",null,"1215 ELIAS FATHI",null,"1004 MITROVIC BENDA"]
[null,"1003 NJAIM RONALD",null,"1210 PASHI KABUNDA",null,"1015 JAAOURE SOUFIANE"]
[null,"2122 EL KANDOUSSI NACER",null,"1211 RAGA DADA",null,"1006 MOURABIT MOHAMED"]
[null,"2204 SOUDANI YACINE",null,"1216 FRADI FARID",null,"1003 NJAIM RONALD"]
[null,"2223 BENAMMAR MONJI",null,"1223 JALOKA KHALID"]
[null,"3215 AOURAGH RACHID",null,"2122 EL KANDOUSSI NACER"]
[null,"3216 AZARIAHI SOUFIANE",null,"2204 SOUDANI YACINE"]
[null,"3122 BISI WA BISI MURPHI",null,"2223 BENAMMAR MONJI"]
[null,"3119 ANAS DABI",null,"3207 ELIAS FATHI",null,"LISTE 42"]
[null,"1007 AYOUB SIDALI",null,"3222 AHMAD MOHAMED",null,"1015 JAAOURE SOUFIANE"]
[null,"1004 MITROVIC BENDA",null,"3122 BISI WA BISI MURPHI",null,"1006 MOURABIT MOHAMED"]
[null,"1015 JAAOURE SOUFIANE",null,"3204 BOUGHARA CHAIB",null,"1003 NJAIM RONALD"]
[null,"1006 MOURABIT MOHAMED",null,"3215 AOURAGH RACHID",null,"2122 EL KANDOUSSI NACER"]
[null,"1003 NJAIM RONALD",null,"3216 AZARIAHI SOUFIANE",null,"2204 SOUDANI YACINE"]
[null,null,null,null,null,"2223 BENAMMAR MONJI"]
[null,null,null,null,null,"3215 AOURAGH RACHID"]
[null,null,null,null,null,"3216 AZARIAHI SOUFIANE"]
[null,null,null,null,null,"3122 BISI WA BISI MURPHI"]
[null,"LISTE 40",null,"LISTE 32",null,"3119 ANAS DABI"]
[null,"3115 JOVANI SHKELZEN",null,"1015 JAAOURE SOUFIANE",null,"1007 AYOUB SIDALI"]
[null,"3119 ANAS DABI",null,"1006 MOURABIT MOHAMED",null,"1004 MITROVIC BENDA"]
[null,"3122 BISI WA BISI MURPHI",null,"1003 NJAIM RONALD",null,"1015 JAAOURE SOUFIANE"]
[null,"1015 JAAOURE SOUFIANE",null,"2122 EL KANDOUSSI NACER",null,"1006 MOURABIT MOHAMED"]
[null,"1006 MOURABIT MOHAMED",null,"2204 SOUDANI YACINE",null,"1003 NJAIM RONALD"]
[null,"2122 EL KANDOUSSI NACER",null,"2223 BENAMMAR MONJI"]
[null,"2204 SOUDANI YACINE",null,"3215 AOURAGH RACHID"]
[null,"2223 BENAMMAR MONJI",null,"3216 AZARIAHI SOUFIANE"]
[null,"3207 ELIAS FATHI",null,"3122 BISI WA BISI MURPHI"]
[null,"1007 AYOUB SIDALI",null,"3119 ANAS DABI",null,"LISTE 45"]
[null,"1004 MITROVIC BENDA",null,"1007 AYOUB SIDALI",null,"1015 JAAOURE SOUFIANE"]
[null,"1015 JAAOURE SOUFIANE",null,"1004 MITROVIC BENDA",null,"1006 MOURABIT MOHAMED"]
[null,"1006 MOURABIT MOHAMED",null,"1015 JAAOURE SOUFIANE",null,"1003 NJAIM RONALD"]
[null,"1003 NJAIM RONALD",null,"1006 MOURABIT MOHAMED",null,"2122 EL KANDOUSSI NACER"]
[null,"1203 MERZNIZI SAMIR",null,"1003 NJAIM RONALD",null,"2204 SOUDANI YACINE"]
[null,"1203 MERZNIZI SAMIR",null,null,null,"2223 BENAMMAR MONJI"]
[null,"1215 ELIAS FATHI",null,null,null,"3215 AOURAGH RACHID"]
[null,"1210 PASHI KABUNDA",null,null,null,"3216 AZARIAHI SOUFIANE"]
[null,"1211 RAGA DADA",null,null,null,"3122 BISI WA BISI MURPHI"]
[null,"1216 FRADI FARID",null,"LISTE 35",null,"3119 ANAS DABI"]
[null,"1223 JALOKA KHALID",null,"1007 AYOUB SIDALI"]
[null,"2122 EL KANDOUSSI NACER",null,"1004 MITROVIC BENDA"]
[null,null,null,"1015 JAAOURE SOUFIANE"]
[null,null,null,"1006 MOURABIT MOHAMED"]
[null,null,null,"1003 NJAIM RONALD"]
[]
[]
[]
[]
[]
[null,"LISTE 43",null,"LISTE 38",null,"LISTE 48"]
[null,"3108 MAMBOUR FRANCK",null,"1203 MERZNIZI SAMIR",null,"1015 JAAOURE SOUFIANE"]
[null,"3110 VANLANGENHOVE NICOLAS",null,"1215 ELIAS FATHI",null,"1006 MOURABIT MOHAMED"]
[null,"3112 EL MALKI FOUAD",null,"1210 PASHI KABUNDA",null,"1003 NJAIM RONALD"]
[null,"3114 CRAPANZANO ALESSANDRO",null,"1211 RAGA DADA",null,"2122 EL KANDOUSSI NACER"]
[null,"3115 JOVANI SHKELZEN",null,"1216 FRADI FARID",null,"2204 SOUDANI YACINE"]
[null,"3119 ANAS DABI",null,"1223 JALOKA KHALID",null,"2223 BENAMMAR MONJI"]
[null,"3122 BISI WA BISI MURPHI",null,"2122 EL KANDOUSSI NACER",null,"3215 AOURAGH RACHID"]
[null,"3204 BOUGHARA CHAIB",null,"2204 SOUDANI YACINE",null,"3216 AZARIAHI SOUFIANE"]
[null,"3215 AOURAGH RACHID",null,"2223 BENAMMAR MONJI",null,"3122 BISI WA BISI MURPHI"]
[null,"3216 AZARIAHI SOUFIANE",null,"3207 ELIAS FATHI",null,"3119 ANAS DABI"]
[null,null,null,"3222 AHMAD MOHAMED"]
[null,null,null,"3122 BISI WA BISI MURPHI"]
[null,null,null,"3204 BOUGHARA CHAIB"]
[null,null,null,"3215 AOURAGH RACHID"]
[null,"LISTE 46",null,"3216 AZARIAHI SOUFIANE",null,"LISTE 51"]
[null,"3108 MAMBOUR FRANCK",null,null,null,"1015 JAAOURE SOUFIANE"]
[null,"3110 VANLANGENHOVE NICOLAS",null,null,null,"1006 MOURABIT MOHAMED"]
[null,"3112 EL MALKI FOUAD",null,null,null,"1003 NJAIM RONALD"]
[null,"3114 CRAPANZANO ALESSANDRO",null,null,null,"2122 EL KANDOUSSI NACER"]
[null,"3115 JOVANI SHKELZEN",null,"LISTE 41",null,"2204 SOUDANI YACINE"]
[null,"3119 ANAS DABI",null,"3115 JOVANI SHKELZEN",null,"2223 BENAMMAR MONJI"]
[null,"3122 BISI WA BISI MURPHI",null,"3119 ANAS DABI",null,"3215 AOURAGH RACHID"]
[null,"3204 BOUGHARA CHAIB",null,"3122 BISI WA BISI MURPHI",null,"3216 AZARIAHI SOUFIANE"]
[null,"3215 AOURAGH RACHID",null,"1015 JAAOURE SOUFIANE",null,"3122 BISI WA BISI MURPHI"]
[null,"3216 AZARIAHI SOUFIANE",null,"1006 MOURABIT MOHAMED",null,"3119 ANAS DABI"]
[null,null,null,"2122 EL KANDOUSSI NACER",null,"1007 AYOUB SIDALI"]
[null,null,null,"2204 SOUDANI YACINE",null,"1004 MITROVIC BENDA"]
[null,null,null,"2223 BENAMMAR MONJI",null,"1015 JAAOURE SOUFIANE"]
[null,null,null,"3207 ELIAS FATHI",null,"1006 MOURABIT MOHAMED"]
[null,"LISTE 49",null,"1007 AYOUB SIDALI",null,"1003 NJAIM RONALD"]
[null,"1007 AYOUB SIDALI",null,"1004 MITROVIC BENDA"]
[null,"1004 MITROVIC BENDA",null,"1015 JAAOURE SOUFIANE"]
[null,"1015 JAAOURE SOUFIANE",null,"1006 MOURABIT MOHAMED"]
[null,"1006 MOURABIT MOHAMED",null,"1003 NJAIM RONALD"]
[null,"1003 NJAIM RONALD",null,"1203 MERZNIZI SAMIR",null,"LISTE 54"]
[null,null,null,"1203 MERZNIZI SAMIR",null,"1015 JAAOURE SOUFIANE"]
[null,null,null,"1215 ELIAS FATHI",null,"1006 MOURABIT MOHAMED"]
[null,null,null,"1210 PASHI KABUNDA",null,"1003 NJAIM RONALD"]
[null,null,null,"1211 RAGA DADA",null,"2122 EL KANDOUSSI NACER"]
[null,"LISTE 52",null,"1216 FRADI FARID",null,"2204 SOUDANI YACINE"]
[null,"1007 AYOUB SIDALI",null,"1223 JALOKA KHALID",null,"2223 BENAMMAR MONJI"]
[null,"1004 MITROVIC BENDA",null,"2122 EL KANDOUSSI NACER",null,"3215 AOURAGH RACHID"]
[null,"1015 JAAOURE SOUFIANE",null,null,null,"3216 AZARIAHI SOUFIANE"]
[null,"1006 MOURABIT MOHAMED",null,null,null,"3122 BISI WA BISI MURPHI"]
[null,"1003 NJAIM RONALD",null,null,null,"3119 ANAS DABI"]
[]
[]
[]
[]
[]
[null,"LISTE 55",null,"LISTE 44",null,"LISTE 57"]
[null,"1007 AYOUB SIDALI",null,"3115 JOVANI SHKELZEN",null,"1015 JAAOURE SOUFIANE"]
[null,"1004 MITROVIC BENDA",null,"3119 ANAS DABI",null,"1006 MOURABIT MOHAMED"]
[null,"1015 JAAOURE SOUFIANE",null,"3122 BISI WA BISI MURPHI",null,"1003 NJAIM RONALD"]
[null,"1006 MOURABIT MOHAMED",null,"1015 JAAOURE SOUFIANE",null,"2122 EL KANDOUSSI NACER"]
[null,"1003 NJAIM RONALD",null,"1006 MOURABIT MOHAMED",null,"2204 SOUDANI YACINE"]
[null,null,null,"2122 EL KANDOUSSI NACER",null,"2223 BENAMMAR MONJI"]
[null,null,null,"2204 SOUDANI YACINE",null,"3215 AOURAGH RACHID"]
[null,null,null,"2223 BENAMMAR MONJI",null,"3216 AZARIAHI SOUFIANE"]
[null,null,null,"3207 ELIAS FATHI",null,"3122 BISI WA BISI MURPHI"]
[null,"LISTE 58",null,null,null,"3119 ANAS DABI"]
[null,"1007 AYOUB SIDALI",null,null,null,"1007 AYOUB SIDALI"]
[null,"1004 MITROVIC BENDA",null,null,null,"1004 MITROVIC BENDA"]
[null,"1015 JAAOURE SOUFIANE",null,null,null,"1015 JAAOURE SOUFIANE"]
[null,"1006 MOURABIT MOHAMED",null,"LISTE 47",null,"1006 MOURABIT MOHAMED"]
[null,"1003 NJAIM RONALD",null,"3115 JOVANI SHKELZEN",null,"1003 NJAIM RONALD"]
[null,null,null,"3119 ANAS DABI"]
[null,null,null,"3122 BISI WA BISI MURPHI"]
[null,null,null,"1015 JAAOURE SOUFIANE"]
[null,null,null,"1006 MOURABIT MOHAMED"]
[null,"LISTE 61",null,"2122 EL KANDOUSSI NACER",null,"LISTE 60"]
[null,"3115 JOVANI SHKELZEN",null,"2204 SOUDANI YACINE",null,"3115 JOVANI SHKELZEN"]
[null,"3119 ANAS DABI",null,"2223 BENAMMAR MONJI",null,"3119 ANAS DABI"]
[null,"3122 BISI WA BISI MURPHI",null,"3207 ELIAS FATHI",null,"3122 BISI WA BISI MURPHI"]
[null,"1015 JAAOURE SOUFIANE",null,"1007 AYOUB SIDALI",null,"1015 JAAOURE SOUFIANE"]
[null,"1006 MOURABIT MOHAMED",null,"1004 MITROVIC BENDA",null,"1006 MOURABIT MOHAMED"]
[null,"2122 EL KANDOUSSI NACER",null,"1015 JAAOURE SOUFIANE",null,"2122 EL KANDOUSSI NACER"]
[null,"2204 SOUDANI YACINE",null,"1006 MOURABIT MOHAMED",null,"2204 SOUDANI YACINE"]
[null,"2223 BENAMMAR MONJI",null,"1003 NJAIM RONALD",null,"2223 BENAMMAR MONJI"]
[null,"3207 ELIAS FATHI",null,"1203 MERZNIZI SAMIR",null,"3207 ELIAS FATHI"]
[null,"1007 AYOUB SIDALI",null,"1203 MERZNIZI SAMIR",null,"1007 AYOUB SIDALI"]
[null,"1004 MITROVIC BENDA",null,"1215 ELIAS FATHI",null,"1004 MITROVIC BENDA"]
[null,"1015 JAAOURE SOUFIANE",null,"1210 PASHI KABUNDA",null,"1015 JAAOURE SOUFIANE"]
[null,"1006 MOURABIT MOHAMED",null,"1211 RAGA DADA",null,"1006 MOURABIT MOHAMED"]
[null,"1003 NJAIM RONALD",null,"1216 FRADI FARID",null,"1003 NJAIM RONALD"]
[null,"1203 MERZNIZI SAMIR",null,"1223 JALOKA KHALID",null,"1203 MERZNIZI SAMIR"]
[null,"1203 MERZNIZI SAMIR",null,"2122 EL KANDOUSSI NACER",null,"1203 MERZNIZI SAMIR"]
[null,"1215 ELIAS FATHI",null,null,null,"1215 ELIAS FATHI"]
[null,"1210 PASHI KABUNDA",null,null,null,"1210 PASHI KABUNDA"]
[null,"1211 RAGA DADA",null,null,null,"1211 RAGA DADA"]
[null,"1216 FRADI FARID",null,null,null,"1216 FRADI FARID"]
[null,"1223 JALOKA KHALID",null,null,null,"1223 JALOKA KHALID"]
[null,"2122 EL KANDOUSSI NACER",null,null,null,"2122 EL KANDOUSSI NACER"]
[]
[]
[]
[]
[]
[]
[]
[]
[null,"LISTE 64",null,"LISTE 50",null,"LISTE 63"]
[null,"1203 MERZNIZI SAMIR",null,"3115 JOVANI SHKELZEN",null,"1007 AYOUB SIDALI"]
[null,"1215 ELIAS FATHI",null,"3119 ANAS DABI",null,"1004 MITROVIC BENDA"]
[null,"1210 PASHI KABUNDA",null,"3122 BISI WA BISI MURPHI",null,"1015 JAAOURE SOUFIANE"]
[null,"1211 RAGA DADA",null,"1015 JAAOURE SOUFIANE",null,"1006 MOURABIT MOHAMED"]
[null,"1216 FRADI FARID",null,"1006 MOURABIT MOHAMED",null,"1003 NJAIM RONALD"]
[null,"1223 JALOKA KHALID",null,"2122 EL KANDOUSSI NACER"]
[null,"2122 EL KANDOUSSI NACER",null,"2204 SOUDANI YACINE"]
[null,"2204 SOUDANI YACINE",null,"2223 BENAMMAR MONJI"]
[null,"2223 BENAMMAR MONJI",null,"3207 ELIAS FATHI"]
[null,"3207 ELIAS FATHI",null,"1007 AYOUB SIDALI",null,"LISTE 66"]
[null,"3222 AHMAD MOHAMED",null,"1004 MITROVIC BENDA",null,"3115 JOVANI SHKELZEN"]
[null,"3122 BISI WA BISI MURPHI",null,"1015 JAAOURE SOUFIANE",null,"3119 ANAS DABI"]
[null,"3204 BOUGHARA CHAIB",null,"1006 MOURABIT MOHAMED",null,"3122 BISI WA BISI MURPHI"]
[null,"3215 AOURAGH RACHID",null,"1003 NJAIM RONALD",null,"1015 JAAOURE SOUFIANE"]
[null,"3216 AZARIAHI SOUFIANE",null,"1203 MERZNIZI SAMIR",null,"1006 MOURABIT MOHAMED"]
[null,null,null,"1203 MERZNIZI SAMIR",null,"2122 EL KANDOUSSI NACER"]
[null,null,null,"1215 ELIAS FATHI",null,"2204 SOUDANI YACINE"]
[null,null,null,"1210 PASHI KABUNDA",null,"2223 BENAMMAR MONJI"]
[null,null,null,"1211 RAGA DADA",null,"3207 ELIAS FATHI"]
[null,"LISTE 67",null,"1216 FRADI FARID",null,"1007 AYOUB SIDALI"]
[null,"1015 JAAOURE SOUFIANE",null,"1223 JALOKA KHALID",null,"1004 MITROVIC BENDA"]
[null,"1006 MOURABIT MOHAMED",null,"2122 EL KANDOUSSI NACER",null,"1015 JAAOURE SOUFIANE"]
[null,"1003 NJAIM RONALD",null,null,null,"1006 MOURABIT MOHAMED"]
[null,"2122 EL KANDOUSSI NACER",null,null,null,"1003 NJAIM RONALD"]
[null,"2204 SOUDANI YACINE",null,null,null,"1203 MERZNIZI SAMIR"]
[null,"2223 BENAMMAR MONJI",null,null,null,"1203 MERZNIZI SAMIR"]
[null,"3215 AOURAGH RACHID",null,"LISTE 53",null,"1215 ELIAS FATHI"]
[null,"3216 AZARIAHI SOUFIANE",null,"1203 MERZNIZI SAMIR",null,"1210 PASHI KABUNDA"]
[null,"3122 BISI WA BISI MURPHI",null,"1215 ELIAS FATHI",null,"1211 RAGA DADA"]
[null,"3119 ANAS DABI",null,"1210 PASHI KABUNDA",null,"1216 FRADI FARID"]
[null,"1007 AYOUB SIDALI",null,"1211 RAGA DADA",null,"1223 JALOKA KHALID"]
[null,"1004 MITROVIC BENDA",null,"1216 FRADI FARID",null,"2122 EL KANDOUSSI NACER"]
[null,"1015 JAAOURE SOUFIANE",null,"1223 JALOKA KHALID"]
[null,"1006 MOURABIT MOHAMED",null,"2122 EL KANDOUSSI NACER"]
[null,"1003 NJAIM RONALD",null,"2204 SOUDANI YACINE"]
[null,null,null,"2223 BENAMMAR MONJI"]
[null,null,null,"3207 ELIAS FATHI"]
[null,null,null,"3222 AHMAD MOHAMED"]
[null,null,null,"3122 BISI WA BISI MURPHI"]
[null,null,null,"3204 BOUGHARA CHAIB"]
[null,null,null,"3215 AOURAGH RACHID"]
[null,null,null,"3216 AZARIAHI SOUFIANE"]
[]
[]
[]
[]
[]
[]
[]
[]
[null,"LISTE 70",null,"LISTE 56",null,"LISTE 69"]
[null,"3115 JOVANI SHKELZEN",null,"3115 JOVANI SHKELZEN",null,"1203 MERZNIZI SAMIR"]
[null,"3119 ANAS DABI",null,"3119 ANAS DABI",null,"1215 ELIAS FATHI"]
[null,"3122 BISI WA BISI MURPHI",null,"3122 BISI WA BISI MURPHI",null,"1210 PASHI KABUNDA"]
[null,"1015 JAAOURE SOUFIANE",null,"1015 JAAOURE SOUFIANE",null,"1211 RAGA DADA"]
[null,"1006 MOURABIT MOHAMED",null,"1006 MOURABIT MOHAMED",null,"1216 FRADI FARID"]
[null,"2122 EL KANDOUSSI NACER",null,"2122 EL KANDOUSSI NACER",null,"1223 JALOKA KHALID"]
[null,"2204 SOUDANI YACINE",null,"2204 SOUDANI YACINE",null,"2122 EL KANDOUSSI NACER"]
[null,"2223 BENAMMAR MONJI",null,"2223 BENAMMAR MONJI",null,"2204 SOUDANI YACINE"]
[null,"3207 ELIAS FATHI",null,"3207 ELIAS FATHI",null,"2223 BENAMMAR MONJI"]
[null,"1007 AYOUB SIDALI",null,"1007 AYOUB SIDALI",null,"3207 ELIAS FATHI"]
[null,"1004 MITROVIC BENDA",null,"1004 MITROVIC BENDA",null,"3222 AHMAD MOHAMED"]
[null,"1015 JAAOURE SOUFIANE",null,"1015 JAAOURE SOUFIANE",null,"3122 BISI WA BISI MURPHI"]
[null,"1006 MOURABIT MOHAMED",null,"1006 MOURABIT MOHAMED",null,"3204 BOUGHARA CHAIB"]
[null,"1003 NJAIM RONALD",null,"1003 NJAIM RONALD",null,"3215 AOURAGH RACHID"]
[null,"1203 MERZNIZI SAMIR",null,"1203 MERZNIZI SAMIR",null,"3216 AZARIAHI SOUFIANE"]
[null,"1203 MERZNIZI SAMIR",null,"1203 MERZNIZI SAMIR"]
[null,"1215 ELIAS FATHI",null,"1215 ELIAS FATHI"]
[null,"1210 PASHI KABUNDA",null,"1210 PASHI KABUNDA"]
[null,"1211 RAGA DADA",null,"1211 RAGA DADA"]
[null,"1216 FRADI FARID",null,"1216 FRADI FARID",null,"LISTE 72"]
[null,"1223 JALOKA KHALID",null,"1223 JALOKA KHALID",null,"1007 AYOUB SIDALI"]
[null,null,null,"2122 EL KANDOUSSI NACER",null,"1004 MITROVIC BENDA"]
[null,null,null,null,null,"1015 JAAOURE SOUFIANE"]
[null,null,null,null,null,"1006 MOURABIT MOHAMED"]
[null,null,null,null,null,"1003 NJAIM RONALD"]
[null,"LISTE 73"]
[null,"1203 MERZNIZI SAMIR",null,"LISTE 59"]
[null,"1215 ELIAS FATHI",null,"1203 MERZNIZI SAMIR"]
[null,"1210 PASHI KABUNDA",null,"1215 ELIAS FATHI"]
[null,"1211 RAGA DADA",null,"1210 PASHI KABUNDA",null,"LISTE 75"]
[null,"1216 FRADI FARID",null,"1211 RAGA DADA",null,"1007 AYOUB SIDALI"]
[null,"1223 JALOKA KHALID",null,"1216 FRADI FARID"]
[null,"2122 EL KANDOUSSI NACER",null,"1223 JALOKA KHALID"]
[null,"2204 SOUDANI YACINE",null,"2122 EL KANDOUSSI NACER"]
[null,"2223 BENAMMAR MONJI",null,"2204 SOUDANI YACINE"]
[null,"3207 ELIAS FATHI",null,"2223 BENAMMAR MONJI"]
[null,"3222 AHMAD MOHAMED",null,"3207 ELIAS FATHI"]
[null,"3122 BISI WA BISI MURPHI",null,"3222 AHMAD MOHAMED"]
[null,"3204 BOUGHARA CHAIB",null,"3122 BISI WA BISI MURPHI"]
[null,"3215 AOURAGH RACHID",null,"3204 BOUGHARA CHAIB"]
[null,"3216 AZARIAHI SOUFIANE",null,"3215 AOURAGH RACHID"]
[null,null,null,"3216 AZARIAHI SOUFIANE"]
[]
[]
[]
[]
[]
[]
[]
[]
[null,"LISTE 76",null,"LISTE 62",null,"LISTE 78"]
[null,"2204 SOUDANI YACINE",null,"1015 JAAOURE SOUFIANE",null,"3115 JOVANI SHKELZEN"]
[null,"2223 BENAMMAR MONJI",null,"1006 MOURABIT MOHAMED",null,"3119 ANAS DABI"]
[null,"3207 ELIAS FATHI",null,"1003 NJAIM RONALD",null,"3122 BISI WA BISI MURPHI"]
[null,"3222 AHMAD MOHAMED",null,"2122 EL KANDOUSSI NACER",null,"1015 JAAOURE SOUFIANE"]
[null,"3122 BISI WA BISI MURPHI",null,"2204 SOUDANI YACINE",null,"1006 MOURABIT MOHAMED"]
[null,"3204 BOUGHARA CHAIB",null,"2223 BENAMMAR MONJI",null,"2122 EL KANDOUSSI NACER"]
[null,"3215 AOURAGH RACHID",null,"3215 AOURAGH RACHID",null,"2204 SOUDANI YACINE"]
[null,"3216 AZARIAHI SOUFIANE",null,"3216 AZARIAHI SOUFIANE",null,"2223 BENAMMAR MONJI"]
[null,null,null,"3122 BISI WA BISI MURPHI",null,"3207 ELIAS FATHI"]
[null,null,null,"3119 ANAS DABI",null,"1007 AYOUB SIDALI"]
[null,null,null,"1007 AYOUB SIDALI",null,"1004 MITROVIC BENDA"]
[null,null,null,"1004 MITROVIC BENDA",null,"1015 JAAOURE SOUFIANE"]
[null,"LISTE 79",null,"1015 JAAOURE SOUFIANE",null,"1006 MOURABIT MOHAMED"]
[null,"1015 JAAOURE SOUFIANE",null,"1006 MOURABIT MOHAMED",null,"1003 NJAIM RONALD"]
[null,"1006 MOURABIT MOHAMED",null,"1003 NJAIM RONALD",null,"1203 MERZNIZI SAMIR"]
[null,"1003 NJAIM RONALD",null,null,null,"1203 MERZNIZI SAMIR"]
[null,"2122 EL KANDOUSSI NACER",null,null,null,"1215 ELIAS FATHI"]
[null,"2204 SOUDANI YACINE",null,null,null,"1210 PASHI KABUNDA"]
[null,"2223 BENAMMAR MONJI",null,null,null,"1211 RAGA DADA"]
[null,"3215 AOURAGH RACHID",null,"LISTE 65",null,"1216 FRADI FARID"]
[null,"3216 AZARIAHI SOUFIANE",null,"3115 JOVANI SHKELZEN",null,"1223 JALOKA KHALID"]
[null,"3122 BISI WA BISI MURPHI",null,"3119 ANAS DABI",null,"2122 EL KANDOUSSI NACER"]
[null,"3119 ANAS DABI",null,"3122 BISI WA BISI MURPHI"]
[null,"1007 AYOUB SIDALI",null,"1015 JAAOURE SOUFIANE"]
[null,"1004 MITROVIC BENDA",null,"1006 MOURABIT MOHAMED"]
[null,"1015 JAAOURE SOUFIANE",null,"2122 EL KANDOUSSI NACER"]
[null,"1006 MOURABIT MOHAMED",null,"2204 SOUDANI YACINE",null,"LISTE 81"]
[null,"1003 NJAIM RONALD",null,"2223 BENAMMAR MONJI",null,"1203 MERZNIZI SAMIR"]
[null,null,null,"3207 ELIAS FATHI",null,"1215 ELIAS FATHI"]
[null,null,null,"1007 AYOUB SIDALI",null,"1210 PASHI KABUNDA"]
[null,null,null,"1004 MITROVIC BENDA",null,"1211 RAGA DADA"]
[null,null,null,"1015 JAAOURE SOUFIANE",null,"1216 FRADI FARID"]
[null,"LISTE 82",null,"1006 MOURABIT MOHAMED",null,"1223 JALOKA KHALID"]
[null,"1007 AYOUB SIDALI",null,"1003 NJAIM RONALD",null,"2122 EL KANDOUSSI NACER"]
[null,"1004 MITROVIC BENDA",null,"1203 MERZNIZI SAMIR",null,"2204 SOUDANI YACINE"]
[null,"1015 JAAOURE SOUFIANE",null,"1203 MERZNIZI SAMIR",null,"2223 BENAMMAR MONJI"]
[null,"1006 MOURABIT MOHAMED",null,"1215 ELIAS FATHI",null,"3207 ELIAS FATHI"]
[null,"1003 NJAIM RONALD",null,"1210 PASHI KABUNDA",null,"3222 AHMAD MOHAMED"]
[null,null,null,"1211 RAGA DADA",null,"3122 BISI WA BISI MURPHI"]
[null,null,null,"1216 FRADI FARID",null,"3204 BOUGHARA CHAIB"]
[null,null,null,"1223 JALOKA KHALID",null,"3215 AOURAGH RACHID"]
[null,null,null,"2122 EL KANDOUSSI NACER",null,"3216 AZARIAHI SOUFIANE"]
[]
[]
[]
[]
[]
[]
[]
[]
[null,"LISTE 85",null,"LISTE 68",null,"LISTE 84"]
[null,"1015 JAAOURE SOUFIANE",null,"1007 AYOUB SIDALI",null,"3115 JOVANI SHKELZEN"]
[null,"1006 MOURABIT MOHAMED",null,"1004 MITROVIC BENDA",null,"3119 ANAS DABI"]
[null,"1003 NJAIM RONALD",null,"1015 JAAOURE SOUFIANE",null,"3122 BISI WA BISI MURPHI"]
[null,"2122 EL KANDOUSSI NACER",null,"1006 MOURABIT MOHAMED",null,"1015 JAAOURE SOUFIANE"]
[null,"2204 SOUDANI YACINE",null,"1003 NJAIM RONALD",null,"1006 MOURABIT MOHAMED"]
[null,"2223 BENAMMAR MONJI",null,null,null,"2122 EL KANDOUSSI NACER"]
[null,"3215 AOURAGH RACHID",null,null,null,"2204 SOUDANI YACINE"]
[null,"3216 AZARIAHI SOUFIANE",null,null,null,"2223 BENAMMAR MONJI"]
[null,"3122 BISI WA BISI MURPHI",null,null,null,"3207 ELIAS FATHI"]
[null,"3119 ANAS DABI",null,"LISTE 71"]
[null,null,null,"1015 JAAOURE SOUFIANE"]
[null,null,null,"1006 MOURABIT MOHAMED"]
[null,null,null,"1003 NJAIM RONALD"]
[null,null,null,"2122 EL KANDOUSSI NACER",null,"LISTE 87"]
[null,"LISTE 88",null,"2204 SOUDANI YACINE",null,"3115 JOVANI SHKELZEN"]
[null,"1015 JAAOURE SOUFIANE",null,"2223 BENAMMAR MONJI",null,"3119 ANAS DABI"]
[null,"1006 MOURABIT MOHAMED",null,"3215 AOURAGH RACHID",null,"3122 BISI WA BISI MURPHI"]
[null,"1003 NJAIM RONALD",null,"3216 AZARIAHI SOUFIANE",null,"1015 JAAOURE SOUFIANE"]
[null,"2122 EL KANDOUSSI NACER",null,"3122 BISI WA BISI MURPHI",null,"1006 MOURABIT MOHAMED"]
[null,"2204 SOUDANI YACINE",null,"3119 ANAS DABI",null,"2122 EL KANDOUSSI NACER"]
[null,"1223 JALOKA KHALID",null,"1007 AYOUB SIDALI",null,"2204 SOUDANI YACINE"]
[null,"2122 EL KANDOUSSI NACER",null,"1004 MITROVIC BENDA",null,"2223 BENAMMAR MONJI"]
[null,"2204 SOUDANI YACINE",null,"1015 JAAOURE SOUFIANE",null,"3207 ELIAS FATHI"]
[null,"2223 BENAMMAR MONJI",null,"1006 MOURABIT MOHAMED"]
[null,"3207 ELIAS FATHI",null,"1003 NJAIM RONALD"]
[null,"3222 AHMAD MOHAMED"]
[]
[]
[]
[null,null,null,"LISTE 74"]
[null,"LISTE 91",null,"1203 MERZNIZI SAMIR"]
[null,"1007 AYOUB SIDALI",null,"1203 MERZNIZI SAMIR"]
[null,"1004 MITROVIC BENDA",null,"1215 ELIAS FATHI"]
[null,"1015 JAAOURE SOUFIANE"]
[null,"1006 MOURABIT MOHAMED"]
[null,"1003 NJAIM RONALD"]
[]
[]
[]
[]
[]
[]
[]
[]
[]
[]
[]
[]
[]
[]
[null,"LISTE 94",null,"LISTE 77",null,"LISTE 90"]
[null,"1015 JAAOURE SOUFIANE",null,"3108 MAMBOUR FRANCK",null,"1007 AYOUB SIDALI"]
[null,"1006 MOURABIT MOHAMED",null,"3110 VANLANGENHOVE NICOLAS",null,"1004 MITROVIC BENDA"]
[null,"1003 NJAIM RONALD",null,"3112 EL MALKI FOUAD",null,"1015 JAAOURE SOUFIANE"]
[null,"2122 EL KANDOUSSI NACER",null,"3114 CRAPANZANO ALESSANDRO",null,"1006 MOURABIT MOHAMED"]
[null,"2204 SOUDANI YACINE",null,"3115 JOVANI SHKELZEN",null,"1003 NJAIM RONALD"]
[null,"2223 BENAMMAR MONJI",null,"3119 ANAS DABI",null,"3119 ANAS DABI"]
[null,"3215 AOURAGH RACHID",null,"3122 BISI WA BISI MURPHI",null,"3122 BISI WA BISI MURPHI"]
[null,"3216 AZARIAHI SOUFIANE",null,"3204 BOUGHARA CHAIB",null,"3204 BOUGHARA CHAIB"]
[null,"3122 BISI WA BISI MURPHI",null,"3215 AOURAGH RACHID",null,"1007 AYOUB SIDALI"]
[null,"3119 ANAS DABI",null,"3216 AZARIAHI SOUFIANE",null,"1004 MITROVIC BENDA"]
[null,null,null,null,null,"1015 JAAOURE SOUFIANE"]
[null,null,null,null,null,"1006 MOURABIT MOHAMED"]
[null,null,null,null,null,"1003 NJAIM RONALD"]
[null,null,null,null,null,"3108 MAMBOUR FRANCK"]
[null,"LISTE 97",null,"LISTE 80",null,"3110 VANLANGENHOVE NICOLAS"]
[null,"1015 JAAOURE SOUFIANE",null,"1007 AYOUB SIDALI",null,"3112 EL MALKI FOUAD"]
[null,"1006 MOURABIT MOHAMED",null,"1004 MITROVIC BENDA",null,"3114 CRAPANZANO ALESSANDRO"]
[null,"1003 NJAIM RONALD",null,"1015 JAAOURE SOUFIANE",null,"3115 JOVANI SHKELZEN"]
[null,"2122 EL KANDOUSSI NACER",null,"1006 MOURABIT MOHAMED",null,"3119 ANAS DABI"]
[null,"2204 SOUDANI YACINE",null,"1003 NJAIM RONALD",null,"3122 BISI WA BISI MURPHI"]
[null,"2223 BENAMMAR MONJI",null,null,null,"3204 BOUGHARA CHAIB"]
[null,"3215 AOURAGH RACHID",null,null,null,"3215 AOURAGH RACHID"]
[null,"3216 AZARIAHI SOUFIANE",null,null,null,"3216 AZARIAHI SOUFIANE"]
[null,"3122 BISI WA BISI MURPHI"]
[null,"3119 ANAS DABI",null,"LISTE 83"]
[null,null,null,"3108 MAMBOUR FRANCK"]
[null,null,null,"3110 VANLANGENHOVE NICOLAS"]
[null,null,null,"3112 EL MALKI FOUAD",null,"LISTE 93"]
[null,null,null,"3114 CRAPANZANO ALESSANDRO",null,"3115 JOVANI SHKELZEN"]
[null,"LISTE 100",null,"3115 JOVANI SHKELZEN",null,"3119 ANAS DABI"]
[null,"1015 JAAOURE SOUFIANE",null,"3119 ANAS DABI",null,"3122 BISI WA BISI MURPHI"]
[null,"1006 MOURABIT MOHAMED",null,"3122 BISI WA BISI MURPHI",null,"1015 JAAOURE SOUFIANE"]
[null,"1003 NJAIM RONALD",null,"3204 BOUGHARA CHAIB",null,"1006 MOURABIT MOHAMED"]
[null,"2122 EL KANDOUSSI NACER",null,"3215 AOURAGH RACHID",null,"2122 EL KANDOUSSI NACER"]
[null,"2204 SOUDANI YACINE",null,"3216 AZARIAHI SOUFIANE",null,"2204 SOUDANI YACINE"]
[null,"2223 BENAMMAR MONJI",null,null,null,"2223 BENAMMAR MONJI"]
[null,"3215 AOURAGH RACHID",null,null,null,"3207 ELIAS FATHI"]
[null,"3216 AZARIAHI SOUFIANE"]
[null,"3122 BISI WA BISI MURPHI"]
[null,"3119 ANAS DABI"]
[]
[]
[]
[]
[]
[]
[]
[]
[]
[]
[null,"LISTE 103",null,"LISTE 86",null,"LISTE 96"]
[null,"3122 BISI WA BISI MURPHI",null,"3108 MAMBOUR FRANCK",null,"3115 JOVANI SHKELZEN"]
[null,"3119 ANAS DABI",null,"3110 VANLANGENHOVE NICOLAS",null,"3119 ANAS DABI"]
[null,"3122 BISI WA BISI MURPHI",null,"3112 EL MALKI FOUAD",null,"3122 BISI WA BISI MURPHI"]
[null,"1015 JAAOURE SOUFIANE",null,"3114 CRAPANZANO ALESSANDRO",null,"1015 JAAOURE SOUFIANE"]
[null,"1006 MOURABIT MOHAMED",null,"3115 JOVANI SHKELZEN",null,"1006 MOURABIT MOHAMED"]
[null,"2122 EL KANDOUSSI NACER",null,"3119 ANAS DABI",null,"2122 EL KANDOUSSI NACER"]
[null,"2204 SOUDANI YACINE",null,"3122 BISI WA BISI MURPHI",null,"2204 SOUDANI YACINE"]
[null,"2223 BENAMMAR MONJI",null,"3204 BOUGHARA CHAIB",null,"2223 BENAMMAR MONJI"]
[null,"3207 ELIAS FATHI",null,"3215 AOURAGH RACHID",null,"3207 ELIAS FATHI"]
[null,"1007 AYOUB SIDALI",null,"3216 AZARIAHI SOUFIANE",null,"1007 AYOUB SIDALI"]
[null,"1004 MITROVIC BENDA",null,null,null,"1004 MITROVIC BENDA"]
[null,"1015 JAAOURE SOUFIANE",null,null,null,"1015 JAAOURE SOUFIANE"]
[null,"1006 MOURABIT MOHAMED",null,null,null,"1006 MOURABIT MOHAMED"]
[null,"1003 NJAIM RONALD",null,null,null,"1003 NJAIM RONALD"]
[null,"1203 MERZNIZI SAMIR",null,"LISTE 89",null,"1203 MERZNIZI SAMIR"]
[null,"1203 MERZNIZI SAMIR",null,"1203 MERZNIZI SAMIR",null,"1203 MERZNIZI SAMIR"]
[null,"1215 ELIAS FATHI",null,"1215 ELIAS FATHI",null,"1215 ELIAS FATHI"]
[null,"1210 PASHI KABUNDA",null,"1210 PASHI KABUNDA",null,"1210 PASHI KABUNDA"]
[null,"1211 RAGA DADA",null,"1211 RAGA DADA",null,"1211 RAGA DADA"]
[null,"1216 FRADI FARID",null,"1216 FRADI FARID",null,"1216 FRADI FARID"]
[null,"1223 JALOKA KHALID",null,"1223 JALOKA KHALID",null,"1223 JALOKA KHALID"]
[null,"2122 EL KANDOUSSI NACER",null,"2122 EL KANDOUSSI NACER",null,"2122 EL KANDOUSSI NACER"]
[null,null,null,"2204 SOUDANI YACINE"]
[null,null,null,"2223 BENAMMAR MONJI"]
[null,null,null,"3207 ELIAS FATHI"]
[null,null,null,"3222 AHMAD MOHAMED"]
[null,"LISTE 106",null,"3122 BISI WA BISI MURPHI",null,"LISTE 99"]
[null,"3122 BISI WA BISI MURPHI",null,"3204 BOUGHARA CHAIB",null,"1203 MERZNIZI SAMIR"]
[null,"1215 ELIAS FATHI",null,null,null,"1215 ELIAS FATHI"]
[null,"1210 PASHI KABUNDA",null,null,null,"1210 PASHI KABUNDA"]
[null,"1211 RAGA DADA",null,null,null,"1211 RAGA DADA"]
[null,"1216 FRADI FARID",null,null,null,"1216 FRADI FARID"]
[null,"1223 JALOKA KHALID",null,"LISTE 92",null,"1223 JALOKA KHALID"]
[null,"2122 EL KANDOUSSI NACER",null,"3108 MAMBOUR FRANCK",null,"2122 EL KANDOUSSI NACER"]
[null,"2204 SOUDANI YACINE",null,"3110 VANLANGENHOVE NICOLAS",null,"2204 SOUDANI YACINE"]
[null,"2223 BENAMMAR MONJI",null,"3112 EL MALKI FOUAD",null,"2223 BENAMMAR MONJI"]
[null,"3207 ELIAS FATHI",null,"3114 CRAPANZANO ALESSANDRO",null,"3207 ELIAS FATHI"]
[null,"3222 AHMAD MOHAMED",null,"3115 JOVANI SHKELZEN",null,"3222 AHMAD MOHAMED"]
[null,"3122 BISI WA BISI MURPHI",null,"3119 ANAS DABI",null,"3122 BISI WA BISI MURPHI"]
[null,"3204 BOUGHARA CHAIB",null,"3122 BISI WA BISI MURPHI",null,"3204 BOUGHARA CHAIB"]
[null,"3215 AOURAGH RACHID",null,"3204 BOUGHARA CHAIB",null,"3215 AOURAGH RACHID"]
[null,"3216 AZARIAHI SOUFIANE",null,"3215 AOURAGH RACHID",null,"3216 AZARIAHI SOUFIANE"]
[null,null,null,"3216 AZARIAHI SOUFIANE"]
[]
[]
[]
[]
[]
[]
[]
[null,"LISTE 109",null,"LISTE 95",null,"LISTE 102"]
[null,"1203 MERZNIZI SAMIR",null,"3108 MAMBOUR FRANCK",null,"1015 JAAOURE SOUFIANE"]
[null,"1203 MERZNIZI SAMIR",null,"3110 VANLANGENHOVE NICOLAS",null,"3110 VANLANGENHOVE NICOLAS"]
[null,"1215 ELIAS FATHI",null,"3112 EL MALKI FOUAD",null,"3112 EL MALKI FOUAD"]
[null,null,null,"3114 CRAPANZANO ALESSANDRO",null,"3114 CRAPANZANO ALESSANDRO"]
[null,null,null,"3115 JOVANI SHKELZEN",null,"3115 JOVANI SHKELZEN"]
[null,null,null,"3119 ANAS DABI",null,"3119 ANAS DABI"]
[null,null,null,"3122 BISI WA BISI MURPHI",null,"3122 BISI WA BISI MURPHI"]
[null,"LISTE 112",null,"3204 BOUGHARA CHAIB",null,"3204 BOUGHARA CHAIB"]
[null,"3108 MAMBOUR FRANCK",null,"3215 AOURAGH RACHID",null,"3215 AOURAGH RACHID"]
[null,"3110 VANLANGENHOVE NICOLAS",null,"3216 AZARIAHI SOUFIANE",null,"3216 AZARIAHI SOUFIANE"]
[null,"3112 EL MALKI FOUAD"]
[null,"3114 CRAPANZANO ALESSANDRO"]
[null,"3115 JOVANI SHKELZEN"]
[null,"3119 ANAS DABI"]
[null,"3122 BISI WA BISI MURPHI",null,"LISTE 98",null,"LISTE 105"]
[null,"3204 BOUGHARA CHAIB",null,"1007 AYOUB SIDALI",null,"1015 JAAOURE SOUFIANE"]
[null,"3215 AOURAGH RACHID",null,"1004 MITROVIC BENDA",null,"1004 MITROVIC BENDA"]
[null,"3216 AZARIAHI SOUFIANE",null,"1015 JAAOURE SOUFIANE",null,"1015 JAAOURE SOUFIANE"]
[null,null,null,"1006 MOURABIT MOHAMED",null,"1006 MOURABIT MOHAMED"]
[null,null,null,"1003 NJAIM RONALD",null,"1003 NJAIM RONALD"]
[]
[]
[null,"LISTE 115"]
[null,"1007 AYOUB SIDALI"]
[null,"1004 MITROVIC BENDA",null,"LISTE 101",null,"LISTE 108"]
[null,"1015 JAAOURE SOUFIANE",null,"1203 MERZNIZI SAMIR",null,"2204 SOUDANI YACINE"]
[null,"1006 MOURABIT MOHAMED",null,"2223 BENAMMAR MONJI",null,"3110 VANLANGENHOVE NICOLAS"]
[null,"1003 NJAIM RONALD",null,"3207 ELIAS FATHI",null,"3112 EL MALKI FOUAD"]
[null,null,null,"3222 AHMAD MOHAMED",null,"3114 CRAPANZANO ALESSANDRO"]
[null,null,null,"3122 BISI WA BISI MURPHI",null,"3115 JOVANI SHKELZEN"]
[null,null,null,"3204 BOUGHARA CHAIB",null,"3119 ANAS DABI"]
[null,null,null,"3215 AOURAGH RACHID",null,"3122 BISI WA BISI MURPHI"]
[null,"LISTE 118",null,"3216 AZARIAHI SOUFIANE",null,"3204 BOUGHARA CHAIB"]
[null,"3108 MAMBOUR FRANCK",null,"3108 MAMBOUR FRANCK",null,"3215 AOURAGH RACHID"]
[null,"3110 VANLANGENHOVE NICOLAS",null,"3110 VANLANGENHOVE NICOLAS",null,"3216 AZARIAHI SOUFIANE"]
[null,"3112 EL MALKI FOUAD",null,"3112 EL MALKI FOUAD"]
[null,"3114 CRAPANZANO ALESSANDRO",null,"3114 CRAPANZANO ALESSANDRO"]
[null,"3115 JOVANI SHKELZEN",null,"3115 JOVANI SHKELZEN"]
[null,"3119 ANAS DABI",null,"3119 ANAS DABI"]
[null,"3122 BISI WA BISI MURPHI",null,"3122 BISI WA BISI MURPHI"]
[null,"3204 BOUGHARA CHAIB",null,"3204 BOUGHARA CHAIB"]
[null,"3215 AOURAGH RACHID",null,"3215 AOURAGH RACHID"]
[null,"3216 AZARIAHI SOUFIANE",null,"3216 AZARIAHI SOUFIANE"]
[]
[]
[]
[]
[]
[]
[]
[null,null,null,"LISTE 104",null,"LISTE 111"]
[null,null,null,"1203 MERZNIZI SAMIR",null,"2204 SOUDANI YACINE"]
[null,null,null,"1006 MOURABIT MOHAMED",null,"2223 BENAMMAR MONJI"]
[null,null,null,"1003 NJAIM RONALD",null,"3207 ELIAS FATHI"]
[null,null,null,"2122 EL KANDOUSSI NACER",null,"3222 AHMAD MOHAMED"]
[null,null,null,"2204 SOUDANI YACINE",null,"3122 BISI WA BISI MURPHI"]
[null,null,null,"2223 BENAMMAR MONJI",null,"3204 BOUGHARA CHAIB"]
[null,null,null,"3215 AOURAGH RACHID",null,"3215 AOURAGH RACHID"]
[null,null,null,"3216 AZARIAHI SOUFIANE",null,"3216 AZARIAHI SOUFIANE"]
[null,null,null,"3122 BISI WA BISI MURPHI"]
[null,null,null,"3119 ANAS DABI"]
[null,null,null,"1007 AYOUB SIDALI"]
[null,null,null,"1004 MITROVIC BENDA"]
[null,null,null,"1015 JAAOURE SOUFIANE",null,"LISTE 114"]
[null,null,null,"1006 MOURABIT MOHAMED",null,"1015 JAAOURE SOUFIANE"]
[null,null,null,"1003 NJAIM RONALD",null,"1006 MOURABIT MOHAMED"]
[null,null,null,null,null,"1003 NJAIM RONALD"]
[null,null,null,null,null,"2122 EL KANDOUSSI NACER"]
[null,null,null,null,null,"2204 SOUDANI YACINE"]
[null,null,null,null,null,"2223 BENAMMAR MONJI"]
[null,null,null,"LISTE 107",null,"3215 AOURAGH RACHID"]
[null,null,null,"1203 MERZNIZI SAMIR",null,"3216 AZARIAHI SOUFIANE"]
[null,null,null,"1004 MITROVIC BENDA",null,"3122 BISI WA BISI MURPHI"]
[null,null,null,"1015 JAAOURE SOUFIANE",null,"3119 ANAS DABI"]
[null,null,null,"1006 MOURABIT MOHAMED",null,"1007 AYOUB SIDALI"]
[null,null,null,"1003 NJAIM RONALD",null,"1004 MITROVIC BENDA"]
[null,null,null,null,null,"1015 JAAOURE SOUFIANE"]
[null,null,null,null,null,"1006 MOURABIT MOHAMED"]
[null,null,null,null,null,"1003 NJAIM RONALD"]
[]
[null,null,null,"LISTE 110"]
[null,null,null,"1007 AYOUB SIDALI"]
[]
[null,null,null,null,null,"LISTE 117"]
[null,null,null,null,null,"1007 AYOUB SIDALI"]
[null,null,null,null,null,"1004 MITROVIC BENDA"]
[null,null,null,null,null,"1015 JAAOURE SOUFIANE"]
[null,null,null,null,null,"1006 MOURABIT MOHAMED"]
[null,null,null,null,null,"1003 NJAIM RONALD"]
[]
[]
[]
[]
[]
[]
[]
[]
[]
[]
[]
[]
[null,null,null,"LISTE 113",null,"LISTE 120"]
[null,null,null,"3115 JOVANI SHKELZEN",null,"1015 JAAOURE SOUFIANE"]
[null,null,null,"3119 ANAS DABI",null,"1006 MOURABIT MOHAMED"]
[null,null,null,"3122 BISI WA BISI MURPHI",null,"1003 NJAIM RONALD"]
[null,null,null,"1015 JAAOURE SOUFIANE",null,"2122 EL KANDOUSSI NACER"]
[null,null,null,"1006 MOURABIT MOHAMED",null,"2204 SOUDANI YACINE"]
[null,null,null,"2122 EL KANDOUSSI NACER",null,"2223 BENAMMAR MONJI"]
[null,null,null,"2204 SOUDANI YACINE",null,"3215 AOURAGH RACHID"]
[null,null,null,"2223 BENAMMAR MONJI",null,"3216 AZARIAHI SOUFIANE"]
[null,null,null,"3207 ELIAS FATHI",null,"3122 BISI WA BISI MURPHI"]
[null,null,null,"1007 AYOUB SIDALI",null,"3119 ANAS DABI"]
[null,null,null,"1004 MITROVIC BENDA"]
[null,null,null,"1015 JAAOURE SOUFIANE"]
[null,null,null,"1006 MOURABIT MOHAMED"]
[null,null,null,"1003 NJAIM RONALD"]
[null,null,null,"1203 MERZNIZI SAMIR"]
[null,null,null,"1203 MERZNIZI SAMIR"]
[null,null,null,"1215 ELIAS FATHI"]
[null,null,null,"1210 PASHI KABUNDA"]
[null,null,null,"1211 RAGA DADA"]
[null,null,null,"1216 FRADI FARID"]
[null,null,null,"1223 JALOKA KHALID"]
[null,null,null,"2122 EL KANDOUSSI NACER"]
[]
[]
[]
[]
[null,null,null,"LISTE 116"]
[null,null,null,"1203 MERZNIZI SAMIR"]
[null,null,null,"1215 ELIAS FATHI"]
[null,null,null,"1210 PASHI KABUNDA"]
[null,null,null,"1211 RAGA DADA"]
[null,null,null,"1216 FRADI FARID"]
[null,null,null,"1223 JALOKA KHALID"]
[null,null,null,"2122 EL KANDOUSSI NACER"]
[null,null,null,"2204 SOUDANI YACINE"]
[null,null,null,"2223 BENAMMAR MONJI"]
[null,null,null,"3207 ELIAS FATHI"]
[null,null,null,"3222 AHMAD MOHAMED"]
[null,null,null,"3122 BISI WA BISI MURPHI"]
[null,null,null,"3204 BOUGHARA CHAIB"]
[null,null,null,"3215 AOURAGH RACHID"]
[null,null,null,"3216 AZARIAHI SOUFIANE"]
[]
[]
[]
[]
[]
[]
[]
[]
[]
[null,null,null,"LISTE 119"]
[null,null,null,"3115 JOVANI SHKELZEN"]
[null,null,null,"3119 ANAS DABI"]
[null,null,null,"3122 BISI WA BISI MURPHI"]
[null,null,null,"1015 JAAOURE SOUFIANE"]
[null,null,null,"1006 MOURABIT MOHAMED"]
[null,null,null,"2122 EL KANDOUSSI NACER"]
[null,null,null,"2204 SOUDANI YACINE"]
[null,null,null,"2223 BENAMMAR MONJI"]
[null,null,null,"3207 ELIAS FATHI"]

{"sheet":"Feuil2","index":1,"n_rows":24,"n_cols":240,"rows_kept":24,"cut":false,"hidden":false,"merged":[]}
[2,"LISTE 1",2,"LISTE 2",2,"LISTE 3",{"$f":"A1+COUNTA(B:B)+ 4","v":10},"LISTE 4",{"$f":"C1+COUNTA(D:D)+ 4","v":8},"LISTE 5",{"$f":"E1+COUNTA(F:F)+ 4","v":15},"LISTE 6",{"$f":"G1+COUNTA(H:H)+ 4","v":25},"LISTE 7",{"$f":"I1+COUNTA(J:J)+ 4","v":35},"LISTE 8",{"$f":"K1+COUNTA(L:L)+ 4","v":35},"LISTE 9",{"$f":"M1+COUNTA(N:N)+ 4","v":35},"LISTE 10",{"$f":"O1+COUNTA(P:P)+ 4","v":55},"LISTE 11",{"$f":"Q1+COUNTA(R:R)+ 4","v":45},"LISTE 12",{"$f":"S1+COUNTA(T:T)+ 4","v":50},"LISTE 13",{"$f":"U1+COUNTA(V:V)+ 4","v":69},"LISTE 14",{"$f":"W1+COUNTA(X:X)+ 4","v":60},"LISTE 15",{"$f":"Y1+COUNTA(Z:Z)+ 4","v":65},"LISTE 16",{"$f":"AA1+COUNTA(AB:AB)+ 4","v":83},"LISTE 17",{"$f":"AC1+COUNTA(AD:AD)+ 4","v":75},"LISTE 18",{"$f":"AE1+COUNTA(AF:AF)+ 4","v":83},"LISTE 19",{"$f":"AG1+COUNTA(AH:AH)+ 4","v":101},"LISTE 20",{"$f":"AI1+COUNTA(AJ:AJ)+ 4","v":85},"LISTE 21",{"$f":"AK1+COUNTA(AL:AL)+ 4","v":98},"LISTE 22",{"$f":"AM1+COUNTA(AN:AN)+ 4","v":115},"LISTE 23",{"$f":"AO1+COUNTA(AP:AP)+ 4","v":100},"LISTE 24",{"$f":"AQ1+COUNTA(AR:AR)+ 4","v":113},"LISTE 25",{"$f":"AS1+COUNTA(AT:AT)+ 4","v":142},"LISTE 26",{"$f":"AU1+COUNTA(AV:AV)+ 4","v":115},"LISTE 27",{"$f":"AW1+COUNTA(AX:AX)+ 4","v":123},"LISTE 28",{"$f":"AY1+COUNTA(AZ:AZ)+ 4","v":162},"LISTE 29",{"$f":"BA1+COUNTA(BB:BB)+ 4","v":130},"LISTE 30",{"$f":"BC1+COUNTA(BD:BD)+ 4","v":133},"LISTE 31",{"$f":"BE1+COUNTA(BF:BF)+ 4","v":182},"LISTE 32",{"$f":"BG1+COUNTA(BH:BH)+ 4","v":140},"LISTE 33",{"$f":"BI1+COUNTA(BJ:BJ)+ 4","v":160},"LISTE 34",{"$f":"BK1+COUNTA(BL:BL)+ 4","v":202},"LISTE 35",{"$f":"BM1+COUNTA(BN:BN)+ 4","v":150},"LISTE 36",{"$f":"BO1+COUNTA(BP:BP)+ 4","v":180},"LISTE 37",{"$f":"BQ1+COUNTA(BR:BR)+ 4","v":212},"LISTE 38",{"$f":"BS1+COUNTA(BT:BT)+ 4","v":177},"LISTE 39",{"$f":"BU1+COUNTA(BV:BV)+ 4","v":200},"LISTE 40",{"$f":"BW1+COUNTA(BX:BX)+ 4","v":232},"LISTE 41",{"$f":"BY1+COUNTA(BZ:BZ)+ 4","v":187},"LISTE 42",{"$f":"CA1+COUNTA(CB:CB)+ 4","v":227},"LISTE 43",{"$f":"CC1+COUNTA(CD:CD)+ 4","v":259},"LISTE 44",{"$f":"CE1+COUNTA(CF:CF)+ 4","v":207},"LISTE 45",{"$f":"CG1+COUNTA(CH:CH)+ 4","v":242},"LISTE 46",{"$f":"CI1+COUNTA(CJ:CJ)+ 4","v":273},"LISTE 47",{"$f":"CK1+COUNTA(CL:CL)+ 4","v":222},"LISTE 48",{"$f":"CM1+COUNTA(CN:CN)+ 4","v":257},"LISTE 49",{"$f":"CO1+COUNTA(CP:CP)+ 4","v":300},"LISTE 50",{"$f":"CQ1+COUNTA(CR:CR)+ 4","v":237},"LISTE 51",{"$f":"CS1+COUNTA(CT:CT)+ 4","v":267},"LISTE 52",{"$f":"CU1+COUNTA(CV:CV)+ 4","v":327},"LISTE 53",{"$f":"CW1+COUNTA(CX:CX)+ 4","v":257},"LISTE 54",{"$f":"CY1+COUNTA(CZ:CZ)+ 4","v":277},"LISTE 55",{"$f":"DA1+COUNTA(DB:DB)+ 4","v":347},"LISTE 56",{"$f":"DC1+COUNTA(DD:DD)+ 4","v":272},"LISTE 57",{"$f":"DE1+COUNTA(DF:DF)+ 4","v":287},"LISTE 58",{"$f":"DG1+COUNTA(DH:DH)+ 4","v":374},"LISTE 59",{"$f":"DI1+COUNTA(DJ:DJ)+ 4","v":292},"LISTE 60",{"$f":"DK1+COUNTA(DL:DL)+ 4","v":297},"LISTE 61",{"$f":"DM1+COUNTA(DN:DN)+ 4","v":394},"LISTE 62",{"$f":"DO1+COUNTA(DP:DP)+ 4","v":319},"LISTE 63",{"$f":"DQ1+COUNTA(DR:DR)+ 4","v":324},"LISTE 64",{"$f":"DS1+COUNTA(DT:DT)+ 4","v":414},"LISTE 65",{"$f":"DU1+COUNTA(DV:DV)+ 4","v":329},"LISTE 66",{"$f":"DW1+COUNTA(DX:DX)+ 4","v":344},"LISTE 67",{"$f":"DY1+COUNTA(DZ:DZ)+ 4","v":441},"LISTE 68",{"$f":"EA1+COUNTA(EB:EB)+ 4","v":356},"LISTE 69",{"$f":"EC1+COUNTA(ED:ED)+ 4","v":364},"LISTE 70",{"$f":"EE1+COUNTA(EF:EF)+ 4","v":451},"LISTE 71",{"$f":"EG1+COUNTA(EH:EH)+ 4","v":376},"LISTE 72",{"$f":"EI1+COUNTA(EJ:EJ)+ 4","v":390},"LISTE 73",{"$f":"EK1+COUNTA(EL:EL)+ 4","v":471},"LISTE 74",{"$f":"EM1+COUNTA(EN:EN)+ 4","v":386},"LISTE 75",{"$f":"EO1+COUNTA(EP:EP)+ 4","v":410},"LISTE 76",{"$f":"EQ1+COUNTA(ER:ER)+ 4","v":479},"LISTE 77",{"$f":"ES1+COUNTA(ET:ET)+ 4","v":392},"LISTE 78",{"$f":"EU1+COUNTA(EV:EV)+ 4","v":423},"LISTE 79",{"$f":"EW1+COUNTA(EX:EX)+ 4","v":494},"LISTE 80",{"$f":"EY1+COUNTA(EZ:EZ)+ 4","v":419},"LISTE 81",{"$f":"FA1+COUNTA(FB:FB)+ 4","v":443},"LISTE 82",{"$f":"FC1+COUNTA(FD:FD)+ 4","v":504},"LISTE 83",{"$f":"FE1+COUNTA(FF:FF)+ 4","v":439},"LISTE 84",{"$f":"FG1+COUNTA(FH:FH)+ 4","v":453},"LISTE 85",{"$f":"FI1+COUNTA(FJ:FJ)+ 4","v":519},"LISTE 86",{"$f":"FK1+COUNTA(FL:FL)+ 4","v":453},"LISTE 87",{"$f":"FM1+COUNTA(FN:FN)+ 4","v":468},"LISTE 88",{"$f":"FO1+COUNTA(FP:FP)+ 4","v":534},"LISTE 89",{"$f":"FQ1+COUNTA(FR:FR)+ 4","v":467},"LISTE 90",{"$f":"FS1+COUNTA(FT:FT)+ 4","v":484},"LISTE 91",{"$f":"FU1+COUNTA(FV:FV)+ 4","v":552},"LISTE 92",{"$f":"FW1+COUNTA(FX:FX)+ 4","v":495},"LISTE 93",{"$f":"FY1+COUNTA(FZ:FZ)+ 4","v":494},"LISTE 94",{"$f":"GA1+COUNTA(GB:GB)+ 4","v":567},"LISTE 95",{"$f":"GC1+COUNTA(GD:GD)+ 4","v":509},"LISTE 96",{"$f":"GE1+COUNTA(GF:GF)+ 4","v":509},"LISTE 97",{"$f":"GG1+COUNTA(GH:GH)+ 4","v":582},"LISTE 98",{"$f":"GI1+COUNTA(GJ:GJ)+ 4","v":536},"LISTE 99",{"$f":"GK1+COUNTA(GL:GL)+ 4","v":524},"LISTE 100",{"$f":"GM1+COUNTA(GN:GN)+ 4","v":592},"LISTE 101",{"$f":"GO1+COUNTA(GP:GP)+ 4","v":556},"LISTE 102",{"$f":"GQ1+COUNTA(GR:GR)+ 4","v":539},"LISTE 103",{"$f":"GS1+COUNTA(GT:GT)+ 4","v":615},"LISTE 104",{"$f":"GU1+COUNTA(GV:GV)+ 4","v":571},"LISTE 105",{"$f":"GW1+COUNTA(GX:GX)+ 4","v":566},"LISTE 106",{"$f":"GY1+COUNTA(GZ:GZ)+ 4","v":635},"LISTE 107",{"$f":"HA1+COUNTA(HB:HB)+ 4","v":581},"LISTE 108",{"$f":"HC1+COUNTA(HD:HD)+ 4","v":586},"LISTE 109",{"$f":"HE1+COUNTA(HF:HF)+ 4","v":645},"LISTE 110",{"$f":"HG1+COUNTA(HH:HH)+ 4","v":596},"LISTE 111",{"$f":"HI1+COUNTA(HJ:HJ)+ 4","v":594},"LISTE 112",{"$f":"HK1+COUNTA(HL:HL)+ 4","v":651},"LISTE 113",{"$f":"HM1+COUNTA(HN:HN)+ 4","v":609},"LISTE 114",{"$f":"HO1+COUNTA(HP:HP)+ 4","v":609},"LISTE 115",{"$f":"HQ1+COUNTA(HR:HR)+ 4","v":678},"LISTE 116",{"$f":"HS1+COUNTA(HT:HT)+ 4","v":629},"LISTE 117",{"$f":"HU1+COUNTA(HV:HV)+ 4","v":619},"LISTE 118",{"$f":"HW1+COUNTA(HX:HX)+ 4","v":698},"LISTE 119",{"$f":"HY1+COUNTA(HZ:HZ)+ 4","v":639},"LISTE 120"]
[1,"1203 MERZNIZI SAMIR",2,"1007 AYOUB SIDALI",3,"2204 SOUDANI YACINE",{"$f":"A2","v":1},"3108 MAMBOUR FRANCK",{"$f":"C2","v":2},"3115 JOVANI SHKELZEN",{"$f":"E2","v":3},"1015 JAAOURE SOUFIANE",{"$f":"G2","v":1},"1007 AYOUB SIDALI",{"$f":"I2","v":2},"1203 MERZNIZI SAMIR",{"$f":"K2","v":3},"1007 AYOUB SIDALI",{"$f":"M2","v":1},"3108 MAMBOUR FRANCK",{"$f":"O2","v":2},"3115 JOVANI SHKELZEN",{"$f":"Q2","v":3},"1015 JAAOURE SOUFIANE",{"$f":"S2","v":1},"3108 MAMBOUR FRANCK",{"$f":"U2","v":2},"3115 JOVANI SHKELZEN",{"$f":"W2","v":3},"1015 JAAOURE SOUFIANE",{"$f":"Y2","v":1},"1203 MERZNIZI SAMIR",{"$f":"AA2","v":2},"1007 AYOUB SIDALI",{"$f":"AC2","v":3},"1007 AYOUB SIDALI",{"$f":"AE2","v":1},"3108 MAMBOUR FRANCK",{"$f":"AG2","v":2},"3115 JOVANI SHKELZEN",{"$f":"AI2","v":3},"1015 JAAOURE SOUFIANE",{"$f":"AK2","v":1},"3108 MAMBOUR FRANCK",{"$f":"AM2","v":2},"3115 JOVANI SHKELZEN",{"$f":"AO2","v":3},"1015 JAAOURE SOUFIANE",{"$f":"AQ2","v":1},"1007 AYOUB SIDALI",{"$f":"AS2","v":2},"1203 MERZNIZI SAMIR",{"$f":"AU2","v":3},"1015 JAAOURE SOUFIANE",{"$f":"AW2","v":1},"1007 AYOUB SIDALI",{"$f":"AY2","v":2},"1203 MERZNIZI SAMIR",{"$f":"BA2","v":3},"1007 AYOUB SIDALI",{"$f":"BC2","v":1},"3115 JOVANI SHKELZEN",{"$f":"BE2","v":2},"1015 JAAOURE SOUFIANE",{"$f":"BG2","v":3},"1007 AYOUB SIDALI",{"$f":"BI2","v":1},"1203 MERZNIZI SAMIR",{"$f":"BK2","v":2},"1007 AYOUB SIDALI",{"$f":"BM2","v":3},"3115 JOVANI SHKELZEN",{"$f":"BO2","v":1},"1015 JAAOURE SOUFIANE",{"$f":"BQ2","v":2},"1203 MERZNIZI SAMIR",{"$f":"BS2","v":3},"1007 AYOUB SIDALI",{"$f":"BU2","v":1},"3115 JOVANI SHKELZEN",{"$f":"BW2","v":2},"3115 JOVANI SHKELZEN",{"$f":"BY2","v":3},"1015 JAAOURE SOUFIANE",{"$f":"CA2","v":1},"3108 MAMBOUR FRANCK",{"$f":"CC2","v":2},"3115 JOVANI SHKELZEN",{"$f":"CE2","v":3},"1015 JAAOURE SOUFIANE",{"$f":"CG2","v":1},"3108 MAMBOUR FRANCK",{"$f":"CI2","v":2},"3115 JOVANI SHKELZEN",{"$f":"CK2","v":3},"1015 JAAOURE SOUFIANE",{"$f":"CM2","v":1},"1007 AYOUB SIDALI",{"$f":"CO2","v":2},"3115 JOVANI SHKELZEN",{"$f":"CQ2","v":3},"1015 JAAOURE SOUFIANE",{"$f":"CS2","v":1},"1007 AYOUB SIDALI",{"$f":"CU2","v":2},"1203 MERZNIZI SAMIR",{"$f":"CW2","v":3},"1015 JAAOURE SOUFIANE",{"$f":"CY2","v":1},"1007 AYOUB SIDALI",{"$f":"DA2","v":2},"3115 JOVANI SHKELZEN",{"$f":"DC2","v":3},"1015 JAAOURE SOUFIANE",{"$f":"DE2","v":1},"1007 AYOUB SIDALI",{"$f":"DG2","v":2},"1203 MERZNIZI SAMIR",{"$f":"DI2","v":3},"3115 JOVANI SHKELZEN",{"$f":"DK2","v":1},"3115 JOVANI SHKELZEN",{"$f":"DM2","v":2},"1015 JAAOURE SOUFIANE",{"$f":"DO2","v":3},"1007 AYOUB SIDALI",{"$f":"DQ2","v":1},"1203 MERZNIZI SAMIR",{"$f":"DS2","v":2},"3115 JOVANI SHKELZEN",{"$f":"DU2","v":3},"3115 JOVANI SHKELZEN",{"$f":"DW2","v":1},"1015 JAAOURE SOUFIANE",{"$f":"DY2","v":2},"1007 AYOUB SIDALI",{"$f":"EA2","v":3},"1203 MERZNIZI SAMIR",{"$f":"EC2","v":1},"3115 JOVANI SHKELZEN",{"$f":"EE2","v":2},"1015 JAAOURE SOUFIANE",{"$f":"EG2","v":3},"1007 AYOUB SIDALI",{"$f":"EI2","v":1},"1203 MERZNIZI SAMIR",{"$f":"EK2","v":2},"1203 MERZNIZI SAMIR",{"$f":"EM2","v":3},"1007 AYOUB SIDALI",{"$f":"EO2","v":1},"2204 SOUDANI YACINE",{"$f":"EQ2","v":2},"3108 MAMBOUR FRANCK",{"$f":"ES2","v":3},"3115 JOVANI SHKELZEN",{"$f":"EU2","v":1},"1015 JAAOURE SOUFIANE",{"$f":"EW2","v":2},"1007 AYOUB SIDALI",{"$f":"EY2","v":3},"1203 MERZNIZI SAMIR",{"$f":"FA2","v":1},"1007 AYOUB SIDALI",{"$f":"FC2","v":2},"3108 MAMBOUR FRANCK",{"$f":"FE2","v":3},"3115 JOVANI SHKELZEN",{"$f":"FG2","v":1},"1015 JAAOURE SOUFIANE",{"$f":"FI2","v":2},"3108 MAMBOUR FRANCK",{"$f":"FK2","v":3},"3115 JOVANI SHKELZEN",{"$f":"FM2","v":1},"1015 JAAOURE SOUFIANE",{"$f":"FO2","v":2},"1203 MERZNIZI SAMIR",{"$f":"FQ2","v":3},"1007 AYOUB SIDALI",{"$f":"FS2","v":1},"1007 AYOUB SIDALI",{"$f":"FU2","v":2},"3108 MAMBOUR FRANCK",{"$f":"FW2","v":3},"3115 JOVANI SHKELZEN",{"$f":"FY2","v":1},"1015 JAAOURE SOUFIANE",{"$f":"GA2","v":2},"3108 MAMBOUR FRANCK",{"$f":"GC2","v":3},"3115 JOVANI SHKELZEN",{"$f":"GE2","v":1},"1015 JAAOURE SOUFIANE",{"$f":"GG2","v":2},"1007 AYOUB SIDALI",{"$f":"GI2","v":3},"1203 MERZNIZI SAMIR",{"$f":"GK2","v":1},"1015 JAAOURE SOUFIANE",{"$f":"GM2","v":2},{"$f":"GP2","v":"1203 MERZNIZI SAMIR"},{"$f":"GO2","v":3},{"$f":"GR2","v":"1015 JAAOURE SOUFIANE"},{"$f":"GQ2","v":1},"3122 BISI WA BISI MURPHI",{"$f":"GS2","v":2},{"$f":"GT2","v":"1203 MERZNIZI SAMIR"},{"$f":"GU2","v":3},{"$f":"GV2","v":"1015 JAAOURE SOUFIANE"},{"$f":"GW2","v":1},{"$f":"GX2","v":"3122 BISI WA BISI MURPHI"},{"$f":"GY2","v":2},{"$f":"GZ2","v":"1203 MERZNIZI SAMIR"},{"$f":"HA2","v":3},"2204 SOUDANI YACINE",{"$f":"HC2","v":1},"1203 MERZNIZI SAMIR",{"$f":"HE2","v":2},"1007 AYOUB SIDALI",{"$f":"HG2","v":3},"2204 SOUDANI YACINE",{"$f":"HI2","v":1},"3108 MAMBOUR FRANCK",{"$f":"HK2","v":2},"3115 JOVANI SHKELZEN",{"$f":"HM2","v":3},"1015 JAAOURE SOUFIANE",{"$f":"HO2","v":1},"1007 AYOUB SIDALI",{"$f":"HQ2","v":2},"1203 MERZNIZI SAMIR",{"$f":"HS2","v":3},"1007 AYOUB SIDALI",{"$f":"HU2","v":1},"3108 MAMBOUR FRANCK",{"$f":"HW2","v":2},"3115 JOVANI SHKELZEN",{"$f":"HY2","v":3},"1015 JAAOURE SOUFIANE"]
[null,"1203 MERZNIZI SAMIR",null,null,null,"2223 BENAMMAR MONJI",null,"3110 VANLANGENHOVE NICOLAS",null,"3119 ANAS DABI",null,"1006 MOURABIT MOHAMED",null,"1004 MITROVIC BENDA",null,"1215 ELIAS FATHI",null,"1004 MITROVIC BENDA",null,"3110 VANLANGENHOVE NICOLAS",null,"3119 ANAS DABI",null,"1006 MOURABIT MOHAMED",null,"3110 VANLANGENHOVE NICOLAS",null,"3119 ANAS DABI",null,"1006 MOURABIT MOHAMED",null,"1215 ELIAS FATHI",null,"1004 MITROVIC BENDA",null,"1004 MITROVIC BENDA",null,"3110 VANLANGENHOVE NICOLAS",null,"3119 ANAS DABI",null,"1006 MOURABIT MOHAMED",null,"3110 VANLANGENHOVE NICOLAS",null,"3119 ANAS DABI",null,"1006 MOURABIT MOHAMED",null,"1004 MITROVIC BENDA",null,"1215 ELIAS FATHI",null,"1006 MOURABIT MOHAMED",null,"1004 MITROVIC BENDA",null,"1215 ELIAS FATHI",null,"1004 MITROVIC BENDA",null,"3119 ANAS DABI",null,"1006 MOURABIT MOHAMED",null,"1004 MITROVIC BENDA",null,"1215 ELIAS FATHI",null,"1004 MITROVIC BENDA",null,"3119 ANAS DABI",null,"1006 MOURABIT MOHAMED",null,"1215 ELIAS FATHI",null,"1004 MITROVIC BENDA",null,"3119 ANAS DABI",null,"3119 ANAS DABI",null,"1006 MOURABIT MOHAMED",null,"3110 VANLANGENHOVE NICOLAS",null,"3119 ANAS DABI",null,"1006 MOURABIT MOHAMED",null,"3110 VANLANGENHOVE NICOLAS",null,"3119 ANAS DABI",null,"1006 MOURABIT MOHAMED",null,"1004 MITROVIC BENDA",null,"3119 ANAS DABI",null,"1006 MOURABIT MOHAMED",null,"1004 MITROVIC BENDA",null,"1215 ELIAS FATHI",null,"1006 MOURABIT MOHAMED",null,"1004 MITROVIC BENDA",null,"3119 ANAS DABI",null,"1006 MOURABIT MOHAMED",null,"1004 MITROVIC BENDA",null,"1215 ELIAS FATHI",null,"3119 ANAS DABI",null,"3119 ANAS DABI",null,"1006 MOURABIT MOHAMED",null,"1004 MITROVIC BENDA",null,"1215 ELIAS FATHI",null,"3119 ANAS DABI",null,"3119 ANAS DABI",null,"1006 MOURABIT MOHAMED",null,"1004 MITROVIC BENDA",null,"1215 ELIAS FATHI",null,"3119 ANAS DABI",null,"1006 MOURABIT MOHAMED",null,"1004 MITROVIC BENDA",null,"1215 ELIAS FATHI",null,"1203 MERZNIZI SAMIR",null,null,null,"2223 BENAMMAR MONJI",null,"3110 VANLANGENHOVE NICOLAS",null,"3119 ANAS DABI",null,"1006 MOURABIT MOHAMED",null,"1004 MITROVIC BENDA",null,"1215 ELIAS FATHI",null,"1004 MITROVIC BENDA",null,"3110 VANLANGENHOVE NICOLAS",null,"3119 ANAS DABI",null,"1006 MOURABIT MOHAMED",null,"3110 VANLANGENHOVE NICOLAS",null,"3119 ANAS DABI",null,"1006 MOURABIT MOHAMED",null,"1215 ELIAS FATHI",null,"1004 MITROVIC BENDA",null,"1004 MITROVIC BENDA",null,"3110 VANLANGENHOVE NICOLAS",null,"3119 ANAS DABI",null,"1006 MOURABIT MOHAMED",null,"3110 VANLANGENHOVE NICOLAS",null,"3119 ANAS DABI",null,"1006 MOURABIT MOHAMED",null,"1004 MITROVIC BENDA",null,"1215 ELIAS FATHI",null,"1006 MOURABIT MOHAMED",null,"2223 BENAMMAR MONJI",null,"3110 VANLANGENHOVE NICOLAS",null,"3119 ANAS DABI",null,"1006 MOURABIT MOHAMED",null,"1004 MITROVIC BENDA",null,"1215 ELIAS FATHI",null,"1004 MITROVIC BENDA",null,"3110 VANLANGENHOVE NICOLAS",null,"1203 MERZNIZI SAMIR",null,null,null,"2223 BENAMMAR MONJI",null,"3110 VANLANGENHOVE NICOLAS",null,"3119 ANAS DABI",null,"1006 MOURABIT MOHAMED",null,"1004 MITROVIC BENDA",null,"1215 ELIAS FATHI",null,"1004 MITROVIC BENDA",null,"3110 VANLANGENHOVE NICOLAS",null,"3119 ANAS DABI",null,"1006 MOURABIT MOHAMED"]
[null,"1215 ELIAS FATHI",null,null,null,"3207 ELIAS FATHI",null,"3112 EL MALKI FOUAD",null,"3122 BISI WA BISI MURPHI",null,"1003 NJAIM RONALD",null,"1015 JAAOURE SOUFIANE",null,"1210 PASHI KABUNDA",null,"1015 JAAOURE SOUFIANE",null,"3112 EL MALKI FOUAD",null,"3122 BISI WA BISI MURPHI",null,"1003 NJAIM RONALD",null,"3112 EL MALKI FOUAD",null,"3122 BISI WA BISI MURPHI",null,"1003 NJAIM RONALD",null,"1210 PASHI KABUNDA",null,"1015 JAAOURE SOUFIANE",null,"1015 JAAOURE SOUFIANE",null,"3112 EL MALKI FOUAD",null,"3122 BISI WA BISI MURPHI",null,"1003 NJAIM RONALD",null,"3112 EL MALKI FOUAD",null,"3122 BISI WA BISI MURPHI",null,"1003 NJAIM RONALD",null,"1015 JAAOURE SOUFIANE",null,"1210 PASHI KABUNDA",null,"1003 NJAIM RONALD",null,"1015 JAAOURE SOUFIANE",null,"1210 PASHI KABUNDA",null,"1015 JAAOURE SOUFIANE",null,"3122 BISI WA BISI MURPHI",null,"1003 NJAIM RONALD",null,"1015 JAAOURE SOUFIANE",null,"1210 PASHI KABUNDA",null,"1015 JAAOURE SOUFIANE",null,"3122 BISI WA BISI MURPHI",null,"1003 NJAIM RONALD",null,"1210 PASHI KABUNDA",null,"1015 JAAOURE SOUFIANE",null,"3122 BISI WA BISI MURPHI",null,"3122 BISI WA BISI MURPHI",null,"1003 NJAIM RONALD",null,"3112 EL MALKI FOUAD",null,"3122 BISI WA BISI MURPHI",null,"1003 NJAIM RONALD",null,"3112 EL MALKI FOUAD",null,"3122 BISI WA BISI MURPHI",null,"1003 NJAIM RONALD",null,"1015 JAAOURE SOUFIANE",null,"3122 BISI WA BISI MURPHI",null,"1003 NJAIM RONALD",null,"1015 JAAOURE SOUFIANE",null,"1210 PASHI KABUNDA",null,"1003 NJAIM RONALD",null,"1015 JAAOURE SOUFIANE",null,"3122 BISI WA BISI MURPHI",null,"1003 NJAIM RONALD",null,"1015 JAAOURE SOUFIANE",null,"1210 PASHI KABUNDA",null,"3122 BISI WA BISI MURPHI",null,"3122 BISI WA BISI MURPHI",null,"1003 NJAIM RONALD",null,"1015 JAAOURE SOUFIANE",null,"1210 PASHI KABUNDA",null,"3122 BISI WA BISI MURPHI",null,"3122 BISI WA BISI MURPHI",null,"1003 NJAIM RONALD",null,"1015 JAAOURE SOUFIANE",null,"1210 PASHI KABUNDA",null,"3122 BISI WA BISI MURPHI",null,"1003 NJAIM RONALD",null,"1015 JAAOURE SOUFIANE",null,"1210 PASHI KABUNDA",null,"1215 ELIAS FATHI",null,null,null,"3207 ELIAS FATHI",null,"3112 EL MALKI FOUAD",null,"3122 BISI WA BISI MURPHI",null,"1003 NJAIM RONALD",null,"1015 JAAOURE SOUFIANE",null,"1210 PASHI KABUNDA",null,"1015 JAAOURE SOUFIANE",null,"3112 EL MALKI FOUAD",null,"3122 BISI WA BISI MURPHI",null,"1003 NJAIM RONALD",null,"3112 EL MALKI FOUAD",null,"3122 BISI WA BISI MURPHI",null,"1003 NJAIM RONALD",null,"1210 PASHI KABUNDA",null,"1015 JAAOURE SOUFIANE",null,"1015 JAAOURE SOUFIANE",null,"3112 EL MALKI FOUAD",null,"3122 BISI WA BISI MURPHI",null,"1003 NJAIM RONALD",null,"3112 EL MALKI FOUAD",null,"3122 BISI WA BISI MURPHI",null,"1003 NJAIM RONALD",null,"1015 JAAOURE SOUFIANE",null,"1210 PASHI KABUNDA",null,"1003 NJAIM RONALD",null,"3207 ELIAS FATHI",null,"3112 EL MALKI FOUAD",null,"3122 BISI WA BISI MURPHI",null,"1003 NJAIM RONALD",null,"1015 JAAOURE SOUFIANE",null,"1210 PASHI KABUNDA",null,"1015 JAAOURE SOUFIANE",null,"3112 EL MALKI FOUAD",null,"1215 ELIAS FATHI",null,null,null,"3207 ELIAS FATHI",null,"3112 EL MALKI FOUAD",null,"3122 BISI WA BISI MURPHI",null,"1003 NJAIM RONALD",null,"1015 JAAOURE SOUFIANE",null,"1210 PASHI KABUNDA",null,"1015 JAAOURE SOUFIANE",null,"3112 EL MALKI FOUAD",null,"3122 BISI WA BISI MURPHI",null,"1003 NJAIM RONALD"]
[null,null,null,null,null,"3222 AHMAD MOHAMED",null,"3114 CRAPANZANO ALESSANDRO",null,"1015 JAAOURE SOUFIANE",null,"2122 EL KANDOUSSI NACER",null,"1006 MOURABIT MOHAMED",null,"1211 RAGA DADA",null,"1006 MOURABIT MOHAMED",null,"3114 CRAPANZANO ALESSANDRO",null,"1015 JAAOURE SOUFIANE",null,"2122 EL KANDOUSSI NACER",null,"3114 CRAPANZANO ALESSANDRO",null,"1015 JAAOURE SOUFIANE",null,"2122 EL KANDOUSSI NACER",null,"1211 RAGA DADA",null,"1006 MOURABIT MOHAMED",null,"1006 MOURABIT MOHAMED",null,"3114 CRAPANZANO ALESSANDRO",null,"1015 JAAOURE SOUFIANE",null,"2122 EL KANDOUSSI NACER",null,"3114 CRAPANZANO ALESSANDRO",null,"1015 JAAOURE SOUFIANE",null,"2122 EL KANDOUSSI NACER",null,"1006 MOURABIT MOHAMED",null,"1211 RAGA DADA",null,"2122 EL KANDOUSSI NACER",null,"1006 MOURABIT MOHAMED",null,"1211 RAGA DADA",null,"1006 MOURABIT MOHAMED",null,"1015 JAAOURE SOUFIANE",null,"2122 EL KANDOUSSI NACER",null,"1006 MOURABIT MOHAMED",null,"1211 RAGA DADA",null,"1006 MOURABIT MOHAMED",null,"1015 JAAOURE SOUFIANE",null,"2122 EL KANDOUSSI NACER",null,"1211 RAGA DADA",null,"1006 MOURABIT MOHAMED",null,"1015 JAAOURE SOUFIANE",null,"1015 JAAOURE SOUFIANE",null,"2122 EL KANDOUSSI NACER",null,"3114 CRAPANZANO ALESSANDRO",null,"1015 JAAOURE SOUFIANE",null,"2122 EL KANDOUSSI NACER",null,"3114 CRAPANZANO ALESSANDRO",null,"1015 JAAOURE SOUFIANE",null,"2122 EL KANDOUSSI NACER",null,"1006 MOURABIT MOHAMED",null,"1015 JAAOURE SOUFIANE",null,"2122 EL KANDOUSSI NACER",null,"1006 MOURABIT MOHAMED",null,"1211 RAGA DADA",null,"2122 EL KANDOUSSI NACER",null,"1006 MOURABIT MOHAMED",null,"1015 JAAOURE SOUFIANE",null,"2122 EL KANDOUSSI NACER",null,"1006 MOURABIT MOHAMED",null,"1211 RAGA DADA",null,"1015 JAAOURE SOUFIANE",null,"1015 JAAOURE SOUFIANE",null,"2122 EL KANDOUSSI NACER",null,"1006 MOURABIT MOHAMED",null,"1211 RAGA DADA",null,"1015 JAAOURE SOUFIANE",null,"1015 JAAOURE SOUFIANE",null,"2122 EL KANDOUSSI NACER",null,"1006 MOURABIT MOHAMED",null,"1211 RAGA DADA",null,"1015 JAAOURE SOUFIANE",null,"2122 EL KANDOUSSI NACER",null,"1006 MOURABIT MOHAMED",null,"1211 RAGA DADA",null,null,null,null,null,"3222 AHMAD MOHAMED",null,"3114 CRAPANZANO ALESSANDRO",null,"1015 JAAOURE SOUFIANE",null,"2122 EL KANDOUSSI NACER",null,"1006 MOURABIT MOHAMED",null,"1211 RAGA DADA",null,"1006 MOURABIT MOHAMED",null,"3114 CRAPANZANO ALESSANDRO",null,"1015 JAAOURE SOUFIANE",null,"2122 EL KANDOUSSI NACER",null,"3114 CRAPANZANO ALESSANDRO",null,"1015 JAAOURE SOUFIANE",null,"2122 EL KANDOUSSI NACER",null,"1211 RAGA DADA",null,"1006 MOURABIT MOHAMED",null,"1006 MOURABIT MOHAMED",null,"3114 CRAPANZANO ALESSANDRO",null,"1015 JAAOURE SOUFIANE",null,"2122 EL KANDOUSSI NACER",null,"3114 CRAPANZANO ALESSANDRO",null,"1015 JAAOURE SOUFIANE",null,"2122 EL KANDOUSSI NACER",null,"1006 MOURABIT MOHAMED",null,"1211 RAGA DADA",null,"2122 EL KANDOUSSI NACER",null,"3222 AHMAD MOHAMED",null,"3114 CRAPANZANO ALESSANDRO",null,"1015 JAAOURE SOUFIANE",null,"2122 EL KANDOUSSI NACER",null,"1006 MOURABIT MOHAMED",null,"1211 RAGA DADA",null,"1006 MOURABIT MOHAMED",null,"3114 CRAPANZANO ALESSANDRO",null,null,null,null,null,"3222 AHMAD MOHAMED",null,"3114 CRAPANZANO ALESSANDRO",null,"1015 JAAOURE SOUFIANE",null,"2122 EL KANDOUSSI NACER",null,"1006 MOURABIT MOHAMED",null,"1211 RAGA DADA",null,"1006 MOURABIT MOHAMED",null,"3114 CRAPANZANO ALESSANDRO",null,"1015 JAAOURE SOUFIANE",null,"2122 EL KANDOUSSI NACER"]
[null,null,null,null,null,"3122 BISI WA BISI MURPHI",null,"3115 JOVANI SHKELZEN",null,"1006 MOURABIT MOHAMED",null,"2204 SOUDANI YACINE",null,"1003 NJAIM RONALD",null,"1216 FRADI FARID",null,"1003 NJAIM RONALD",null,"3115 JOVANI SHKELZEN",null,"1006 MOURABIT MOHAMED",null,"2204 SOUDANI YACINE",null,"3115 JOVANI SHKELZEN",null,"1006 MOURABIT MOHAMED",null,"2204 SOUDANI YACINE",null,"1216 FRADI FARID",null,"1003 NJAIM RONALD",null,"1003 NJAIM RONALD",null,"3115 JOVANI SHKELZEN",null,"1006 MOURABIT MOHAMED",null,"2204 SOUDANI YACINE",null,"3115 JOVANI SHKELZEN",null,"1006 MOURABIT MOHAMED",null,"2204 SOUDANI YACINE",null,"1003 NJAIM RONALD",null,"1216 FRADI FARID",null,"2204 SOUDANI YACINE",null,"1003 NJAIM RONALD",null,"1216 FRADI FARID",null,"1003 NJAIM RONALD",null,"1006 MOURABIT MOHAMED",null,"2204 SOUDANI YACINE",null,"1003 NJAIM RONALD",null,"1216 FRADI FARID",null,"1003 NJAIM RONALD",null,"1006 MOURABIT MOHAMED",null,"2204 SOUDANI YACINE",null,"1216 FRADI FARID",null,"1003 NJAIM RONALD",null,"1006 MOURABIT MOHAMED",null,"1006 MOURABIT MOHAMED",null,"2204 SOUDANI YACINE",null,"3115 JOVANI SHKELZEN",null,"1006 MOURABIT MOHAMED",null,"2204 SOUDANI YACINE",null,"3115 JOVANI SHKELZEN",null,"1006 MOURABIT MOHAMED",null,"2204 SOUDANI YACINE",null,"1003 NJAIM RONALD",null,"1006 MOURABIT MOHAMED",null,"2204 SOUDANI YACINE",null,"1003 NJAIM RONALD",null,"1216 FRADI FARID",null,"2204 SOUDANI YACINE",null,"1003 NJAIM RONALD",null,"1006 MOURABIT MOHAMED",null,"2204 SOUDANI YACINE",null,"1003 NJAIM RONALD",null,"1216 FRADI FARID",null,"1006 MOURABIT MOHAMED",null,"1006 MOURABIT MOHAMED",null,"2204 SOUDANI YACINE",null,"1003 NJAIM RONALD",null,"1216 FRADI FARID",null,"1006 MOURABIT MOHAMED",null,"1006 MOURABIT MOHAMED",null,"2204 SOUDANI YACINE",null,"1003 NJAIM RONALD",null,"1216 FRADI FARID",null,"1006 MOURABIT MOHAMED",null,"2204 SOUDANI YACINE",null,"1003 NJAIM RONALD",null,"1216 FRADI FARID",null,null,null,null,null,"3122 BISI WA BISI MURPHI",null,"3115 JOVANI SHKELZEN",null,"1006 MOURABIT MOHAMED",null,"2204 SOUDANI YACINE",null,"1003 NJAIM RONALD",null,"1216 FRADI FARID",null,"1003 NJAIM RONALD",null,"3115 JOVANI SHKELZEN",null,"1006 MOURABIT MOHAMED",null,"2204 SOUDANI YACINE",null,"3115 JOVANI SHKELZEN",null,"1006 MOURABIT MOHAMED",null,"2204 SOUDANI YACINE",null,"1216 FRADI FARID",null,"1003 NJAIM RONALD",null,"1003 NJAIM RONALD",null,"3115 JOVANI SHKELZEN",null,"1006 MOURABIT MOHAMED",null,"2204 SOUDANI YACINE",null,"3115 JOVANI SHKELZEN",null,"1006 MOURABIT MOHAMED",null,"2204 SOUDANI YACINE",null,"1003 NJAIM RONALD",null,"1216 FRADI FARID",null,"2204 SOUDANI YACINE",null,"3122 BISI WA BISI MURPHI",null,"3115 JOVANI SHKELZEN",null,"1006 MOURABIT MOHAMED",null,"2204 SOUDANI YACINE",null,"1003 NJAIM RONALD",null,"1216 FRADI FARID",null,"1003 NJAIM RONALD",null,"3115 JOVANI SHKELZEN",null,null,null,null,null,"3122 BISI WA BISI MURPHI",null,"3115 JOVANI SHKELZEN",null,"1006 MOURABIT MOHAMED",null,"2204 SOUDANI YACINE",null,"1003 NJAIM RONALD",null,"1216 FRADI FARID",null,"1003 NJAIM RONALD",null,"3115 JOVANI SHKELZEN",null,"1006 MOURABIT MOHAMED",null,"2204 SOUDANI YACINE"]
[null,null,null,null,null,"3204 BOUGHARA CHAIB",null,"3119 ANAS DABI",null,"2122 EL KANDOUSSI NACER",null,"2223 BENAMMAR MONJI",null,null,null,"1223 JALOKA KHALID",null,null,null,"3119 ANAS DABI",null,"2122 EL KANDOUSSI NACER",null,"2223 BENAMMAR MONJI",null,"3119 ANAS DABI",null,"2122 EL KANDOUSSI NACER",null,"2223 BENAMMAR MONJI",null,"1223 JALOKA KHALID",null,"3119 ANAS DABI",null,null,null,"3119 ANAS DABI",null,"2122 EL KANDOUSSI NACER",null,"2223 BENAMMAR MONJI",null,"3119 ANAS DABI",null,"2122 EL KANDOUSSI NACER",null,"2223 BENAMMAR MONJI",null,null,null,"1223 JALOKA KHALID",null,"2223 BENAMMAR MONJI",null,null,null,"1223 JALOKA KHALID",null,null,null,"2122 EL KANDOUSSI NACER",null,"2223 BENAMMAR MONJI",null,null,null,"1223 JALOKA KHALID",null,null,null,"2122 EL KANDOUSSI NACER",null,"2223 BENAMMAR MONJI",null,"1223 JALOKA KHALID",null,null,null,"2122 EL KANDOUSSI NACER",null,"2122 EL KANDOUSSI NACER",null,"2223 BENAMMAR MONJI",null,"3119 ANAS DABI",null,"2122 EL KANDOUSSI NACER",null,"2223 BENAMMAR MONJI",null,"3119 ANAS DABI",null,"2122 EL KANDOUSSI NACER",null,"2223 BENAMMAR MONJI",null,null,null,"2122 EL KANDOUSSI NACER",null,"2223 BENAMMAR MONJI",null,null,null,"1223 JALOKA KHALID",null,"2223 BENAMMAR MONJI",null,null,null,"2122 EL KANDOUSSI NACER",null,"2223 BENAMMAR MONJI",null,null,null,"1223 JALOKA KHALID",null,"2122 EL KANDOUSSI NACER",null,"2122 EL KANDOUSSI NACER",null,"2223 BENAMMAR MONJI",null,null,null,"1223 JALOKA KHALID",null,"2122 EL KANDOUSSI NACER",null,"2122 EL KANDOUSSI NACER",null,"2223 BENAMMAR MONJI",null,null,null,"1223 JALOKA KHALID",null,"2122 EL KANDOUSSI NACER",null,"2223 BENAMMAR MONJI",null,null,null,"1223 JALOKA KHALID",null,null,null,null,null,"3204 BOUGHARA CHAIB",null,"3119 ANAS DABI",null,"2122 EL KANDOUSSI NACER",null,"2223 BENAMMAR MONJI",null,null,null,"1223 JALOKA KHALID",null,null,null,"3119 ANAS DABI",null,"2122 EL KANDOUSSI NACER",null,"2223 BENAMMAR MONJI",null,"3119 ANAS DABI",null,"2122 EL KANDOUSSI NACER",null,"1223 JALOKA KHALID",null,"1223 JALOKA KHALID",null,"3119 ANAS DABI",null,null,null,"3119 ANAS DABI",null,"2122 EL KANDOUSSI NACER",null,"2223 BENAMMAR MONJI",null,"3119 ANAS DABI",null,"2122 EL KANDOUSSI NACER",null,"2223 BENAMMAR MONJI",null,null,null,"1223 JALOKA KHALID",null,"2223 BENAMMAR MONJI",null,"3204 BOUGHARA CHAIB",null,"3119 ANAS DABI",null,"2122 EL KANDOUSSI NACER",null,"2223 BENAMMAR MONJI",null,null,null,"1223 JALOKA KHALID",null,null,null,"3119 ANAS DABI",null,null,null,null,null,"3204 BOUGHARA CHAIB",null,"3119 ANAS DABI",null,"2122 EL KANDOUSSI NACER",null,"2223 BENAMMAR MONJI",null,null,null,"1223 JALOKA KHALID",null,null,null,"3119 ANAS DABI",null,"2122 EL KANDOUSSI NACER",null,"2223 BENAMMAR MONJI"]
[null,null,null,null,null,"3215 AOURAGH RACHID",null,"3122 BISI WA BISI MURPHI",null,"2204 SOUDANI YACINE",null,"3215 AOURAGH RACHID",null,null,null,"2122 EL KANDOUSSI NACER",null,null,null,"3122 BISI WA BISI MURPHI",null,"2204 SOUDANI YACINE",null,"3215 AOURAGH RACHID",null,"3122 BISI WA BISI MURPHI",null,"2204 SOUDANI YACINE",null,"3215 AOURAGH RACHID",null,"2122 EL KANDOUSSI NACER",null,"3122 BISI WA BISI MURPHI",null,null,null,"3122 BISI WA BISI MURPHI",null,"2204 SOUDANI YACINE",null,"3215 AOURAGH RACHID",null,"3122 BISI WA BISI MURPHI",null,"2204 SOUDANI YACINE",null,"3215 AOURAGH RACHID",null,null,null,"2122 EL KANDOUSSI NACER",null,"3215 AOURAGH RACHID",null,null,null,"2122 EL KANDOUSSI NACER",null,null,null,"2204 SOUDANI YACINE",null,"3215 AOURAGH RACHID",null,null,null,"2122 EL KANDOUSSI NACER",null,null,null,"2204 SOUDANI YACINE",null,"3215 AOURAGH RACHID",null,"2122 EL KANDOUSSI NACER",null,null,null,"2204 SOUDANI YACINE",null,"2204 SOUDANI YACINE",null,"3215 AOURAGH RACHID",null,"3122 BISI WA BISI MURPHI",null,"2204 SOUDANI YACINE",null,"3215 AOURAGH RACHID",null,"3122 BISI WA BISI MURPHI",null,"2204 SOUDANI YACINE",null,"3215 AOURAGH RACHID",null,null,null,"2204 SOUDANI YACINE",null,"3215 AOURAGH RACHID",null,null,null,"2122 EL KANDOUSSI NACER",null,"3215 AOURAGH RACHID",null,null,null,"2204 SOUDANI YACINE",null,"3215 AOURAGH RACHID",null,null,null,"2122 EL KANDOUSSI NACER",null,"2204 SOUDANI YACINE",null,"2204 SOUDANI YACINE",null,"3215 AOURAGH RACHID",null,null,null,"2122 EL KANDOUSSI NACER",null,"2204 SOUDANI YACINE",null,"2204 SOUDANI YACINE",null,"3215 AOURAGH RACHID",null,null,null,"2122 EL KANDOUSSI NACER",null,"2204 SOUDANI YACINE",null,"3215 AOURAGH RACHID",null,null,null,"2122 EL KANDOUSSI NACER",null,null,null,null,null,"3215 AOURAGH RACHID",null,"3122 BISI WA BISI MURPHI",null,"2204 SOUDANI YACINE",null,"3215 AOURAGH RACHID",null,null,null,"2122 EL KANDOUSSI NACER",null,null,null,"3122 BISI WA BISI MURPHI",null,"2204 SOUDANI YACINE",null,"3215 AOURAGH RACHID",null,"3122 BISI WA BISI MURPHI",null,"2204 SOUDANI YACINE",null,"2122 EL KANDOUSSI NACER",null,"2122 EL KANDOUSSI NACER",null,"3122 BISI WA BISI MURPHI",null,null,null,"3122 BISI WA BISI MURPHI",null,"2204 SOUDANI YACINE",null,"3215 AOURAGH RACHID",null,"3122 BISI WA BISI MURPHI",null,"2204 SOUDANI YACINE",null,"3215 AOURAGH RACHID",null,null,null,"2122 EL KANDOUSSI NACER",null,"3215 AOURAGH RACHID",null,"3215 AOURAGH RACHID",null,"3122 BISI WA BISI MURPHI",null,"2204 SOUDANI YACINE",null,"3215 AOURAGH RACHID",null,null,null,"2122 EL KANDOUSSI NACER",null,null,null,"3122 BISI WA BISI MURPHI",null,null,null,null,null,"3215 AOURAGH RACHID",null,"3122 BISI WA BISI MURPHI",null,"2204 SOUDANI YACINE",null,"3215 AOURAGH RACHID",null,null,null,"2122 EL KANDOUSSI NACER",null,null,null,"3122 BISI WA BISI MURPHI",null,"2204 SOUDANI YACINE",null,"3215 AOURAGH RACHID"]
[null,null,null,null,null,"3216 AZARIAHI SOUFIANE",null,"3204 BOUGHARA CHAIB",null,"2223 BENAMMAR MONJI",null,"3216 AZARIAHI SOUFIANE",null,null,null,"2204 SOUDANI YACINE",null,null,null,"3204 BOUGHARA CHAIB",null,"2223 BENAMMAR MONJI",null,"3216 AZARIAHI SOUFIANE",null,"3204 BOUGHARA CHAIB",null,"2223 BENAMMAR MONJI",null,"3216 AZARIAHI SOUFIANE",null,"2204 SOUDANI YACINE",null,"3204 BOUGHARA CHAIB",null,null,null,"3204 BOUGHARA CHAIB",null,"2223 BENAMMAR MONJI",null,"3216 AZARIAHI SOUFIANE",null,"3204 BOUGHARA CHAIB",null,"2223 BENAMMAR MONJI",null,"3216 AZARIAHI SOUFIANE",null,null,null,"2204 SOUDANI YACINE",null,"3216 AZARIAHI SOUFIANE",null,null,null,"2204 SOUDANI YACINE",null,null,null,"2223 BENAMMAR MONJI",null,"3216 AZARIAHI SOUFIANE",null,null,null,"2204 SOUDANI YACINE",null,null,null,"2223 BENAMMAR MONJI",null,"3216 AZARIAHI SOUFIANE",null,"2204 SOUDANI YACINE",null,null,null,"2223 BENAMMAR MONJI",null,"2223 BENAMMAR MONJI",null,"3216 AZARIAHI SOUFIANE",null,"3204 BOUGHARA CHAIB",null,"2223 BENAMMAR MONJI",null,"3216 AZARIAHI SOUFIANE",null,"3204 BOUGHARA CHAIB",null,"2223 BENAMMAR MONJI",null,"3216 AZARIAHI SOUFIANE",null,null,null,"2223 BENAMMAR MONJI",null,"3216 AZARIAHI SOUFIANE",null,null,null,"2204 SOUDANI YACINE",null,"3216 AZARIAHI SOUFIANE",null,null,null,"2223 BENAMMAR MONJI",null,"3216 AZARIAHI SOUFIANE",null,null,null,"2204 SOUDANI YACINE",null,"2223 BENAMMAR MONJI",null,"2223 BENAMMAR MONJI",null,"3216 AZARIAHI SOUFIANE",null,null,null,"2204 SOUDANI YACINE",null,"2223 BENAMMAR MONJI",null,"2223 BENAMMAR MONJI",null,"3216 AZARIAHI SOUFIANE",null,null,null,"2204 SOUDANI YACINE",null,"2223 BENAMMAR MONJI",null,"3216 AZARIAHI SOUFIANE",null,null,null,"2204 SOUDANI YACINE",null,null,null,null,null,"3216 AZARIAHI SOUFIANE",null,"3204 BOUGHARA CHAIB",null,"2223 BENAMMAR MONJI",null,"3216 AZARIAHI SOUFIANE",null,null,null,"2204 SOUDANI YACINE",null,null,null,"3204 BOUGHARA CHAIB",null,"2223 BENAMMAR MONJI",null,"3216 AZARIAHI SOUFIANE",null,"3204 BOUGHARA CHAIB",null,"2223 BENAMMAR MONJI",null,"2204 SOUDANI YACINE",null,"2204 SOUDANI YACINE",null,"3204 BOUGHARA CHAIB",null,null,null,"3204 BOUGHARA CHAIB",null,"2223 BENAMMAR MONJI",null,"3216 AZARIAHI SOUFIANE",null,"3204 BOUGHARA CHAIB",null,"2223 BENAMMAR MONJI",null,"3216 AZARIAHI SOUFIANE",null,null,null,"2204 SOUDANI YACINE",null,"3216 AZARIAHI SOUFIANE",null,"3216 AZARIAHI SOUFIANE",null,"3204 BOUGHARA CHAIB",null,"2223 BENAMMAR MONJI",null,"3216 AZARIAHI SOUFIANE",null,null,null,"2204 SOUDANI YACINE",null,null,null,"3204 BOUGHARA CHAIB",null,null,null,null,null,"3216 AZARIAHI SOUFIANE",null,"3204 BOUGHARA CHAIB",null,"2223 BENAMMAR MONJI",null,"3216 AZARIAHI SOUFIANE",null,null,null,"2204 SOUDANI YACINE",null,null,null,"3204 BOUGHARA CHAIB",null,"2223 BENAMMAR MONJI",null,"3216 AZARIAHI SOUFIANE"]
[null,null,null,null,null,null,null,"3215 AOURAGH RACHID",null,"3207 ELIAS FATHI",null,"3122 BISI WA BISI MURPHI",null,null,null,"2223 BENAMMAR MONJI",null,null,null,"3215 AOURAGH RACHID",null,"3207 ELIAS FATHI",null,"3122 BISI WA BISI MURPHI",null,"3215 AOURAGH RACHID",null,"3207 ELIAS FATHI",null,"3122 BISI WA BISI MURPHI",null,"2223 BENAMMAR MONJI",null,"1007 AYOUB SIDALI",null,null,null,"3215 AOURAGH RACHID",null,"3207 ELIAS FATHI",null,"3122 BISI WA BISI MURPHI",null,"3215 AOURAGH RACHID",null,"3207 ELIAS FATHI",null,"3122 BISI WA BISI MURPHI",null,null,null,"2223 BENAMMAR MONJI",null,"3122 BISI WA BISI MURPHI",null,null,null,"2223 BENAMMAR MONJI",null,null,null,"3207 ELIAS FATHI",null,"3122 BISI WA BISI MURPHI",null,null,null,"2223 BENAMMAR MONJI",null,null,null,"3207 ELIAS FATHI",null,"3122 BISI WA BISI MURPHI",null,"2223 BENAMMAR MONJI",null,null,null,"3207 ELIAS FATHI",null,"3207 ELIAS FATHI",null,"3122 BISI WA BISI MURPHI",null,"3215 AOURAGH RACHID",null,"3207 ELIAS FATHI",null,"3122 BISI WA BISI MURPHI",null,"3215 AOURAGH RACHID",null,"3207 ELIAS FATHI",null,"3122 BISI WA BISI MURPHI",null,null,null,"3207 ELIAS FATHI",null,"3122 BISI WA BISI MURPHI",null,null,null,"2223 BENAMMAR MONJI",null,"3122 BISI WA BISI MURPHI",null,null,null,"3207 ELIAS FATHI",null,"3122 BISI WA BISI MURPHI",null,null,null,"2223 BENAMMAR MONJI",null,"3207 ELIAS FATHI",null,"3207 ELIAS FATHI",null,"3122 BISI WA BISI MURPHI",null,null,null,"2223 BENAMMAR MONJI",null,"3207 ELIAS FATHI",null,"3207 ELIAS FATHI",null,"3122 BISI WA BISI MURPHI",null,null,null,"2223 BENAMMAR MONJI",null,"3207 ELIAS FATHI",null,"3122 BISI WA BISI MURPHI",null,null,null,"2223 BENAMMAR MONJI",null,null,null,null,null,null,null,"3215 AOURAGH RACHID",null,"3207 ELIAS FATHI",null,"3122 BISI WA BISI MURPHI",null,null,null,"2223 BENAMMAR MONJI",null,null,null,"3215 AOURAGH RACHID",null,"3207 ELIAS FATHI",null,"3122 BISI WA BISI MURPHI",null,"3215 AOURAGH RACHID",null,"3207 ELIAS FATHI",null,"2223 BENAMMAR MONJI",null,"2223 BENAMMAR MONJI",null,"1007 AYOUB SIDALI",null,null,null,"3215 AOURAGH RACHID",null,"3207 ELIAS FATHI",null,"3122 BISI WA BISI MURPHI",null,"3215 AOURAGH RACHID",null,"3207 ELIAS FATHI",null,"3122 BISI WA BISI MURPHI",null,null,null,"2223 BENAMMAR MONJI",null,"3122 BISI WA BISI MURPHI",null,"3108 MAMBOUR FRANCK",null,"3215 AOURAGH RACHID",null,"3207 ELIAS FATHI",null,"3122 BISI WA BISI MURPHI",null,null,null,"2223 BENAMMAR MONJI",null,null,null,"3215 AOURAGH RACHID",null,null,null,null,null,null,null,"3215 AOURAGH RACHID",null,"3207 ELIAS FATHI",null,"3122 BISI WA BISI MURPHI",null,null,null,"2223 BENAMMAR MONJI",null,null,null,"3215 AOURAGH RACHID",null,"3207 ELIAS FATHI",null,"3122 BISI WA BISI MURPHI"]
[null,null,null,null,null,null,null,"3216 AZARIAHI SOUFIANE",null,"1007 AYOUB SIDALI",null,"3119 ANAS DABI",null,null,null,"3207 ELIAS FATHI",null,null,null,"3216 AZARIAHI SOUFIANE",null,null,null,"3119 ANAS DABI",null,"3216 AZARIAHI SOUFIANE",null,null,null,"3119 ANAS DABI",null,"3207 ELIAS FATHI",null,"1004 MITROVIC BENDA",null,null,null,"3216 AZARIAHI SOUFIANE",null,null,null,"3119 ANAS DABI",null,"3216 AZARIAHI SOUFIANE",null,"1007 AYOUB SIDALI",null,"3119 ANAS DABI",null,null,null,"3207 ELIAS FATHI",null,"3119 ANAS DABI",null,null,null,"3207 ELIAS FATHI",null,null,null,"1007 AYOUB SIDALI",null,"3119 ANAS DABI",null,null,null,"3207 ELIAS FATHI",null,null,null,"1007 AYOUB SIDALI",null,"3119 ANAS DABI",null,"3207 ELIAS FATHI",null,null,null,"1007 AYOUB SIDALI",null,"1007 AYOUB SIDALI",null,"3119 ANAS DABI",null,"3216 AZARIAHI SOUFIANE",null,null,null,"3119 ANAS DABI",null,"3216 AZARIAHI SOUFIANE",null,"1007 AYOUB SIDALI",null,"3119 ANAS DABI",null,null,null,"1007 AYOUB SIDALI",null,"3119 ANAS DABI",null,null,null,"3207 ELIAS FATHI",null,"3119 ANAS DABI",null,null,null,"1007 AYOUB SIDALI",null,"3119 ANAS DABI",null,null,null,"3207 ELIAS FATHI",null,"1007 AYOUB SIDALI",null,"1007 AYOUB SIDALI",null,"3119 ANAS DABI",null,null,null,"3207 ELIAS FATHI",null,"1007 AYOUB SIDALI",null,"1007 AYOUB SIDALI",null,"3119 ANAS DABI",null,null,null,"3207 ELIAS FATHI",null,"1007 AYOUB SIDALI",null,"3119 ANAS DABI",null,null,null,"3207 ELIAS FATHI",null,null,null,null,null,null,null,"3216 AZARIAHI SOUFIANE",null,"1007 AYOUB SIDALI",null,"3119 ANAS DABI",null,null,null,"3207 ELIAS FATHI",null,null,null,"3216 AZARIAHI SOUFIANE",null,null,null,"3119 ANAS DABI",null,"3216 AZARIAHI SOUFIANE",null,null,null,"3207 ELIAS FATHI",null,"3207 ELIAS FATHI",null,"1004 MITROVIC BENDA",null,null,null,"3216 AZARIAHI SOUFIANE",null,null,null,"3119 ANAS DABI",null,"3216 AZARIAHI SOUFIANE",null,"1007 AYOUB SIDALI",null,"3119 ANAS DABI",null,null,null,"3207 ELIAS FATHI",null,"3119 ANAS DABI",null,"3110 VANLANGENHOVE NICOLAS",null,"3216 AZARIAHI SOUFIANE",null,"1007 AYOUB SIDALI",null,"3119 ANAS DABI",null,null,null,"3207 ELIAS FATHI",null,null,null,"3216 AZARIAHI SOUFIANE",null,null,null,null,null,null,null,"3216 AZARIAHI SOUFIANE",null,"1007 AYOUB SIDALI",null,"3119 ANAS DABI",null,null,null,"3207 ELIAS FATHI",null,null,null,"3216 AZARIAHI SOUFIANE",null,null,null,"3119 ANAS DABI"]
[null,null,null,null,null,null,null,null,null,"1004 MITROVIC BENDA",null,"1007 AYOUB SIDALI",null,null,null,"3222 AHMAD MOHAMED",null,null,null,null,null,null,null,null,null,null,null,null,null,null,null,"3222 AHMAD MOHAMED",null,"1015 JAAOURE SOUFIANE",null,null,null,null,null,null,null,null,null,null,null,"1004 MITROVIC BENDA",null,null,null,null,null,"3222 AHMAD MOHAMED",null,null,null,null,null,"3222 AHMAD MOHAMED",null,null,null,"1004 MITROVIC BENDA",null,"1007 AYOUB SIDALI",null,null,null,"3222 AHMAD MOHAMED",null,null,null,"1004 MITROVIC BENDA",null,"1007 AYOUB SIDALI",null,"3222 AHMAD MOHAMED",null,null,null,"1004 MITROVIC BENDA",null,"1004 MITROVIC BENDA",null,"1007 AYOUB SIDALI",null,null,null,null,null,null,null,null,null,"1004 MITROVIC BENDA",null,null,null,null,null,"1004 MITROVIC BENDA",null,"1007 AYOUB SIDALI",null,null,null,"3222 AHMAD MOHAMED",null,null,null,null,null,"1004 MITROVIC BENDA",null,"1007 AYOUB SIDALI",null,null,null,"3222 AHMAD MOHAMED",null,"1004 MITROVIC BENDA",null,"1004 MITROVIC BENDA",null,"1007 AYOUB SIDALI",null,null,null,"3222 AHMAD MOHAMED",null,"1004 MITROVIC BENDA",null,"1004 MITROVIC BENDA",null,"1007 AYOUB SIDALI",null,null,null,"3222 AHMAD MOHAMED",null,"1004 MITROVIC BENDA",null,"1007 AYOUB SIDALI",null,null,null,"3222 AHMAD MOHAMED",null,null,null,null,null,null,null,null,null,"1004 MITROVIC BENDA",null,"1007 AYOUB SIDALI",null,null,null,"3222 AHMAD MOHAMED",null,null,null,null,null,null,null,null,null,null,null,null,null,"3222 AHMAD MOHAMED",null,"3222 AHMAD MOHAMED",null,"1015 JAAOURE SOUFIANE",null,null,null,null,null,null,null,null,null,null,null,"1004 MITROVIC BENDA",null,null,null,null,null,"3222 AHMAD MOHAMED",null,null,null,"3112 EL MALKI FOUAD",null,null,null,"1004 MITROVIC BENDA",null,"1007 AYOUB SIDALI",null,null,null,"3222 AHMAD MOHAMED",null,null,null,null,null,null,null,null,null,null,null,null,null,"1004 MITROVIC BENDA",null,"1007 AYOUB SIDALI",null,null,null,"3222 AHMAD MOHAMED"]
[null,null,null,null,null,null,null,null,null,"1015 JAAOURE SOUFIANE",null,"1004 MITROVIC BENDA",null,null,null,"3122 BISI WA BISI MURPHI",null,null,null,null,null,null,null,null,null,null,null,null,null,null,null,"3122 BISI WA BISI MURPHI",null,"1006 MOURABIT MOHAMED",null,null,null,null,null,null,null,null,null,null,null,"1015 JAAOURE SOUFIANE",null,null,null,null,null,"3122 BISI WA BISI MURPHI",null,null,null,null,null,"3122 BISI WA BISI MURPHI",null,null,null,"1015 JAAOURE SOUFIANE",null,"1004 MITROVIC BENDA",null,null,null,"3122 BISI WA BISI MURPHI",null,null,null,"1015 JAAOURE SOUFIANE",null,"1004 MITROVIC BENDA",null,"3122 BISI WA BISI MURPHI",null,null,null,"1015 JAAOURE SOUFIANE",null,"1015 JAAOURE SOUFIANE",null,"1004 MITROVIC BENDA",null,null,null,null,null,null,null,null,null,"1015 JAAOURE SOUFIANE",null,null,null,null,null,"1015 JAAOURE SOUFIANE",null,"1004 MITROVIC BENDA",null,null,null,"3122 BISI WA BISI MURPHI",null,null,null,null,null,"1015 JAAOURE SOUFIANE",null,"1004 MITROVIC BENDA",null,null,null,"3122 BISI WA BISI MURPHI",null,"1015 JAAOURE SOUFIANE",null,"1015 JAAOURE SOUFIANE",null,"1004 MITROVIC BENDA",null,null,null,"3122 BISI WA BISI MURPHI",null,"1015 JAAOURE SOUFIANE",null,"1015 JAAOURE SOUFIANE",null,"1004 MITROVIC BENDA",null,null,null,"3122 BISI WA BISI MURPHI",null,"1015 JAAOURE SOUFIANE",null,"1004 MITROVIC BENDA",null,null,null,"3122 BISI WA BISI MURPHI",null,null,null,null,null,null,null,null,null,"1015 JAAOURE SOUFIANE",null,"1004 MITROVIC BENDA",null,null,null,"3122 BISI WA BISI MURPHI",null,null,null,null,null,null,null,null,null,null,null,null,null,null,null,"3122 BISI WA BISI MURPHI",null,"1006 MOURABIT MOHAMED",null,null,null,null,null,null,null,null,null,null,null,"1015 JAAOURE SOUFIANE",null,null,null,null,null,"3122 BISI WA BISI MURPHI",null,null,null,"3114 CRAPANZANO ALESSANDRO",null,null,null,"1015 JAAOURE SOUFIANE",null,"1004 MITROVIC BENDA",null,null,null,"3122 BISI WA BISI MURPHI",null,null,null,null,null,null,null,null,null,null,null,null,null,"1015 JAAOURE SOUFIANE",null,"1004 MITROVIC BENDA",null,null,null,"3122 BISI WA BISI MURPHI"]
[null,null,null,null,null,null,null,null,null,"1006 MOURABIT MOHAMED",null,"1015 JAAOURE SOUFIANE",null,null,null,"3204 BOUGHARA CHAIB",null,null,null,null,null,null,null,null,null,null,null,null,null,null,null,"3204 BOUGHARA CHAIB",null,"1003 NJAIM RONALD",null,null,null,null,null,null,null,null,null,null,null,"1006 MOURABIT MOHAMED",null,null,null,null,null,"3204 BOUGHARA CHAIB",null,null,null,null,null,"3204 BOUGHARA CHAIB",null,null,null,"1006 MOURABIT MOHAMED",null,"1015 JAAOURE SOUFIANE",null,null,null,"3204 BOUGHARA CHAIB",null,null,null,"1006 MOURABIT MOHAMED",null,"1015 JAAOURE SOUFIANE",null,"3204 BOUGHARA CHAIB",null,null,null,"1006 MOURABIT MOHAMED",null,"1006 MOURABIT MOHAMED",null,"1015 JAAOURE SOUFIANE",null,null,null,null,null,null,null,null,null,"1006 MOURABIT MOHAMED",null,null,null,null,null,"1006 MOURABIT MOHAMED",null,"1015 JAAOURE SOUFIANE",null,null,null,"3204 BOUGHARA CHAIB",null,null,null,null,null,"1006 MOURABIT MOHAMED",null,"1015 JAAOURE SOUFIANE",null,null,null,"3204 BOUGHARA CHAIB",null,"1006 MOURABIT MOHAMED",null,"1006 MOURABIT MOHAMED",null,"1015 JAAOURE SOUFIANE",null,null,null,"3204 BOUGHARA CHAIB",null,"1006 MOURABIT MOHAMED",null,"1006 MOURABIT MOHAMED",null,"1015 JAAOURE SOUFIANE",null,null,null,"3204 BOUGHARA CHAIB",null,"1006 MOURABIT MOHAMED",null,"1015 JAAOURE SOUFIANE",null,null,null,"3204 BOUGHARA CHAIB",null,null,null,null,null,null,null,null,null,"1006 MOURABIT MOHAMED",null,"1015 JAAOURE SOUFIANE",null,null,null,"3204 BOUGHARA CHAIB",null,null,null,null,null,null,null,null,null,null,null,null,null,null,null,"3204 BOUGHARA CHAIB",null,"1003 NJAIM RONALD",null,null,null,null,null,null,null,null,null,null,null,"1006 MOURABIT MOHAMED",null,null,null,null,null,"3204 BOUGHARA CHAIB",null,null,null,"3115 JOVANI SHKELZEN",null,null,null,"1006 MOURABIT MOHAMED",null,"1015 JAAOURE SOUFIANE",null,null,null,"3204 BOUGHARA CHAIB",null,null,null,null,null,null,null,null,null,null,null,null,null,"1006 MOURABIT MOHAMED",null,"1015 JAAOURE SOUFIANE",null,null,null,"3204 BOUGHARA CHAIB"]
[null,null,null,null,null,null,null,null,null,"1003 NJAIM RONALD",null,"1006 MOURABIT MOHAMED",null,null,null,"3215 AOURAGH RACHID",null,null,null,null,null,null,null,null,null,null,null,null,null,null,null,null,null,null,null,null,null,null,null,null,null,null,null,null,null,"1003 NJAIM RONALD",null,null,null,null,null,"3215 AOURAGH RACHID",null,null,null,null,null,"3215 AOURAGH RACHID",null,null,null,"1003 NJAIM RONALD",null,"1006 MOURABIT MOHAMED",null,null,null,"3215 AOURAGH RACHID",null,null,null,"1003 NJAIM RONALD",null,"1006 MOURABIT MOHAMED",null,"3215 AOURAGH RACHID",null,null,null,"1003 NJAIM RONALD",null,"1003 NJAIM RONALD",null,"1006 MOURABIT MOHAMED",null,null,null,null,null,null,null,null,null,"1003 NJAIM RONALD",null,null,null,null,null,"1003 NJAIM RONALD",null,"1006 MOURABIT MOHAMED",null,null,null,"3215 AOURAGH RACHID",null,null,null,null,null,"1003 NJAIM RONALD",null,"1006 MOURABIT MOHAMED",null,null,null,"3215 AOURAGH RACHID",null,"1003 NJAIM RONALD",null,"1003 NJAIM RONALD",null,"1006 MOURABIT MOHAMED",null,null,null,"3215 AOURAGH RACHID",null,"1003 NJAIM RONALD",null,"1003 NJAIM RONALD",null,"1006 MOURABIT MOHAMED",null,null,null,"3215 AOURAGH RACHID",null,"1003 NJAIM RONALD",null,"1006 MOURABIT MOHAMED",null,null,null,"3215 AOURAGH RACHID",null,null,null,null,null,null,null,null,null,"1003 NJAIM RONALD",null,"1006 MOURABIT MOHAMED",null,null,null,"3215 AOURAGH RACHID",null,null,null,null,null,null,null,null,null,null,null,null,null,null,null,null,null,"3108 MAMBOUR FRANCK",null,null,null,null,null,null,null,null,null,null,null,"1003 NJAIM RONALD",null,null,null,null,null,"3215 AOURAGH RACHID",null,null,null,"3119 ANAS DABI",null,null,null,"1003 NJAIM RONALD",null,"1006 MOURABIT MOHAMED",null,null,null,"3215 AOURAGH RACHID",null,null,null,null,null,null,null,null,null,null,null,null,null,"1003 NJAIM RONALD",null,"1006 MOURABIT MOHAMED",null,null,null,"3215 AOURAGH RACHID"]
[null,null,null,null,null,null,null,null,null,"1203 MERZNIZI SAMIR",null,"1003 NJAIM RONALD",null,null,null,"3216 AZARIAHI SOUFIANE",null,null,null,null,null,null,null,null,null,null,null,null,null,null,null,null,null,null,null,null,null,null,null,null,null,null,null,null,null,"1203 MERZNIZI SAMIR",null,null,null,null,null,"3216 AZARIAHI SOUFIANE",null,null,null,null,null,"3216 AZARIAHI SOUFIANE",null,null,null,"1203 MERZNIZI SAMIR",null,"1003 NJAIM RONALD",null,null,null,"3216 AZARIAHI SOUFIANE",null,null,null,"1203 MERZNIZI SAMIR",null,"1003 NJAIM RONALD",null,"3216 AZARIAHI SOUFIANE",null,null,null,"1203 MERZNIZI SAMIR",null,"1203 MERZNIZI SAMIR",null,"1003 NJAIM RONALD",null,null,null,null,null,null,null,null,null,"1203 MERZNIZI SAMIR",null,null,null,null,null,"1203 MERZNIZI SAMIR",null,"1003 NJAIM RONALD",null,null,null,"3216 AZARIAHI SOUFIANE",null,null,null,null,null,"1203 MERZNIZI SAMIR",null,"1003 NJAIM RONALD",null,null,null,"3216 AZARIAHI SOUFIANE",null,"1203 MERZNIZI SAMIR",null,"1203 MERZNIZI SAMIR",null,"1003 NJAIM RONALD",null,null,null,"3216 AZARIAHI SOUFIANE",null,"1203 MERZNIZI SAMIR",null,"1203 MERZNIZI SAMIR",null,"1003 NJAIM RONALD",null,null,null,"3216 AZARIAHI SOUFIANE",null,"1203 MERZNIZI SAMIR",null,"1003 NJAIM RONALD",null,null,null,"3216 AZARIAHI SOUFIANE",null,null,null,null,null,null,null,null,null,"1203 MERZNIZI SAMIR",null,"1003 NJAIM RONALD",null,null,null,"3216 AZARIAHI SOUFIANE",null,null,null,null,null,null,null,null,null,null,null,null,null,null,null,null,null,"3110 VANLANGENHOVE NICOLAS",null,null,null,null,null,null,null,null,null,null,null,"1203 MERZNIZI SAMIR",null,null,null,null,null,"3216 AZARIAHI SOUFIANE",null,null,null,"3122 BISI WA BISI MURPHI",null,null,null,"1203 MERZNIZI SAMIR",null,"1003 NJAIM RONALD",null,null,null,"3216 AZARIAHI SOUFIANE",null,null,null,null,null,null,null,null,null,null,null,null,null,"1203 MERZNIZI SAMIR",null,"1003 NJAIM RONALD",null,null,null,"3216 AZARIAHI SOUFIANE"]
[null,null,null,null,null,null,null,null,null,"1203 MERZNIZI SAMIR",null,null,null,null,null,null,null,null,null,null,null,null,null,null,null,null,null,null,null,null,null,null,null,null,null,null,null,null,null,null,null,null,null,null,null,"1203 MERZNIZI SAMIR",null,null,null,null,null,null,null,null,null,null,null,null,null,null,null,"1203 MERZNIZI SAMIR",null,null,null,null,null,null,null,null,null,"1203 MERZNIZI SAMIR",null,null,null,null,null,null,null,"1203 MERZNIZI SAMIR",null,"1203 MERZNIZI SAMIR",null,null,null,null,null,null,null,null,null,null,null,"1203 MERZNIZI SAMIR",null,null,null,null,null,"1203 MERZNIZI SAMIR",null,null,null,null,null,null,null,null,null,null,null,"1203 MERZNIZI SAMIR",null,null,null,null,null,null,null,"1203 MERZNIZI SAMIR",null,"1203 MERZNIZI SAMIR",null,null,null,null,null,null,null,"1203 MERZNIZI SAMIR",null,"1203 MERZNIZI SAMIR",null,null,null,null,null,null,null,"1203 MERZNIZI SAMIR",null,null,null,null,null,null,null,null,null,null,null,null,null,null,null,"1203 MERZNIZI SAMIR",null,null,null,null,null,null,null,null,null,null,null,null,null,null,null,null,null,null,null,null,null,null,null,"3112 EL MALKI FOUAD",null,null,null,null,null,null,null,null,null,null,null,"1203 MERZNIZI SAMIR",null,null,null,null,null,null,null,null,null,"3204 BOUGHARA CHAIB",null,null,null,"1203 MERZNIZI SAMIR",null,null,null,null,null,null,null,null,null,null,null,null,null,null,null,null,null,null,null,"1203 MERZNIZI SAMIR"]
[null,null,null,null,null,null,null,null,null,"1215 ELIAS FATHI",null,null,null,null,null,null,null,null,null,null,null,null,null,null,null,null,null,null,null,null,null,null,null,null,null,null,null,null,null,null,null,null,null,null,null,"1215 ELIAS FATHI",null,null,null,null,null,null,null,null,null,null,null,null,null,null,null,"1215 ELIAS FATHI",null,null,null,null,null,null,null,null,null,"1215 ELIAS FATHI",null,null,null,null,null,null,null,"1215 ELIAS FATHI",null,"1215 ELIAS FATHI",null,null,null,null,null,null,null,null,null,null,null,"1215 ELIAS FATHI",null,null,null,null,null,"1215 ELIAS FATHI",null,null,null,null,null,null,null,null,null,null,null,"1215 ELIAS FATHI",null,null,null,null,null,null,null,"1215 ELIAS FATHI",null,"1215 ELIAS FATHI",null,null,null,null,null,null,null,"1215 ELIAS FATHI",null,"1215 ELIAS FATHI",null,null,null,null,null,null,null,"1215 ELIAS FATHI",null,null,null,null,null,null,null,null,null,null,null,null,null,null,null,"1215 ELIAS FATHI",null,null,null,null,null,null,null,null,null,null,null,null,null,null,null,null,null,null,null,null,null,null,null,"3114 CRAPANZANO ALESSANDRO",null,null,null,null,null,null,null,null,null,null,null,"1215 ELIAS FATHI",null,null,null,null,null,null,null,null,null,"3215 AOURAGH RACHID",null,null,null,"1215 ELIAS FATHI",null,null,null,null,null,null,null,null,null,null,null,null,null,null,null,null,null,null,null,"1215 ELIAS FATHI"]
[null,null,null,null,null,null,null,null,null,"1210 PASHI KABUNDA",null,null,null,null,null,null,null,null,null,null,null,null,null,null,null,null,null,null,null,null,null,null,null,null,null,null,null,null,null,null,null,null,null,null,null,"1210 PASHI KABUNDA",null,null,null,null,null,null,null,null,null,null,null,null,null,null,null,"1210 PASHI KABUNDA",null,null,null,null,null,null,null,null,null,"1210 PASHI KABUNDA",null,null,null,null,null,null,null,"1210 PASHI KABUNDA",null,"1210 PASHI KABUNDA",null,null,null,null,null,null,null,null,null,null,null,"1210 PASHI KABUNDA",null,null,null,null,null,"1210 PASHI KABUNDA",null,null,null,null,null,null,null,null,null,null,null,"1210 PASHI KABUNDA",null,null,null,null,null,null,null,"1210 PASHI KABUNDA",null,"1210 PASHI KABUNDA",null,null,null,null,null,null,null,"1210 PASHI KABUNDA",null,"1210 PASHI KABUNDA",null,null,null,null,null,null,null,"1210 PASHI KABUNDA",null,null,null,null,null,null,null,null,null,null,null,null,null,null,null,"1210 PASHI KABUNDA",null,null,null,null,null,null,null,null,null,null,null,null,null,null,null,null,null,null,null,null,null,null,null,"3115 JOVANI SHKELZEN",null,null,null,null,null,null,null,null,null,null,null,"1210 PASHI KABUNDA",null,null,null,null,null,null,null,null,null,"3216 AZARIAHI SOUFIANE",null,null,null,"1210 PASHI KABUNDA",null,null,null,null,null,null,null,null,null,null,null,null,null,null,null,null,null,null,null,"1210 PASHI KABUNDA"]
[null,null,null,null,null,null,null,null,null,"1211 RAGA DADA",null,null,null,null,null,null,null,null,null,null,null,null,null,null,null,null,null,null,null,null,null,null,null,null,null,null,null,null,null,null,null,null,null,null,null,"1211 RAGA DADA",null,null,null,null,null,null,null,null,null,null,null,null,null,null,null,"1211 RAGA DADA",null,null,null,null,null,null,null,null,null,"1211 RAGA DADA",null,null,null,null,null,null,null,"1211 RAGA DADA",null,"1211 RAGA DADA",null,null,null,null,null,null,null,null,null,null,null,"1211 RAGA DADA",null,null,null,null,null,"1211 RAGA DADA",null,null,null,null,null,null,null,null,null,null,null,"1211 RAGA DADA",null,null,null,null,null,null,null,"1211 RAGA DADA",null,"1211 RAGA DADA",null,null,null,null,null,null,null,"1211 RAGA DADA",null,"1211 RAGA DADA",null,null,null,null,null,null,null,"1211 RAGA DADA",null,null,null,null,null,null,null,null,null,null,null,null,null,null,null,"1211 RAGA DADA",null,null,null,null,null,null,null,null,null,null,null,null,null,null,null,null,null,null,null,null,null,null,null,"3119 ANAS DABI",null,null,null,null,null,null,null,null,null,null,null,"1211 RAGA DADA",null,null,null,null,null,null,null,null,null,null,null,null,null,"1211 RAGA DADA",null,null,null,null,null,null,null,null,null,null,null,null,null,null,null,null,null,null,null,"1211 RAGA DADA"]
[null,null,null,null,null,null,null,null,null,"1216 FRADI FARID",null,null,null,null,null,null,null,null,null,null,null,null,null,null,null,null,null,null,null,null,null,null,null,null,null,null,null,null,null,null,null,null,null,null,null,"1216 FRADI FARID",null,null,null,null,null,null,null,null,null,null,null,null,null,null,null,"1216 FRADI FARID",null,null,null,null,null,null,null,null,null,"1216 FRADI FARID",null,null,null,null,null,null,null,"1216 FRADI FARID",null,"1216 FRADI FARID",null,null,null,null,null,null,null,null,null,null,null,"1216 FRADI FARID",null,null,null,null,null,"1216 FRADI FARID",null,null,null,null,null,null,null,null,null,null,null,"1216 FRADI FARID",null,null,null,null,null,null,null,"1216 FRADI FARID",null,"1216 FRADI FARID",null,null,null,null,null,null,null,"1216 FRADI FARID",null,"1216 FRADI FARID",null,null,null,null,null,null,null,"1216 FRADI FARID",null,null,null,null,null,null,null,null,null,null,null,null,null,null,null,"1216 FRADI FARID",null,null,null,null,null,null,null,null,null,null,null,null,null,null,null,null,null,null,null,null,null,null,null,"3122 BISI WA BISI MURPHI",null,null,null,null,null,null,null,null,null,null,null,"1216 FRADI FARID",null,null,null,null,null,null,null,null,null,null,null,null,null,"1216 FRADI FARID",null,null,null,null,null,null,null,null,null,null,null,null,null,null,null,null,null,null,null,"1216 FRADI FARID"]
[null,null,null,null,null,null,null,null,null,"1223 JALOKA KHALID",null,null,null,null,null,null,null,null,null,null,null,null,null,null,null,null,null,null,null,null,null,null,null,null,null,null,null,null,null,null,null,null,null,null,null,"1223 JALOKA KHALID",null,null,null,null,null,null,null,null,null,null,null,null,null,null,null,"1223 JALOKA KHALID",null,null,null,null,null,null,null,null,null,"1223 JALOKA KHALID",null,null,null,null,null,null,null,"1223 JALOKA KHALID",null,"1223 JALOKA KHALID",null,null,null,null,null,null,null,null,null,null,null,"1223 JALOKA KHALID",null,null,null,null,null,"1223 JALOKA KHALID",null,null,null,null,null,null,null,null,null,null,null,"1223 JALOKA KHALID",null,null,null,null,null,null,null,"1223 JALOKA KHALID",null,"1223 JALOKA KHALID",null,null,null,null,null,null,null,"1223 JALOKA KHALID",null,"1223 JALOKA KHALID",null,null,null,null,null,null,null,"1223 JALOKA KHALID",null,null,null,null,null,null,null,null,null,null,null,null,null,null,null,"1223 JALOKA KHALID",null,null,null,null,null,null,null,null,null,null,null,null,null,null,null,null,null,null,null,null,null,null,null,"3204 BOUGHARA CHAIB",null,null,null,null,null,null,null,null,null,null,null,"1223 JALOKA KHALID",null,null,null,null,null,null,null,null,null,null,null,null,null,"1223 JALOKA KHALID",null,null,null,null,null,null,null,null,null,null,null,null,null,null,null,null,null,null,null,"1223 JALOKA KHALID"]
[null,null,null,null,null,null,null,null,null,"2122 EL KANDOUSSI NACER",null,null,null,null,null,null,null,null,null,null,null,null,null,null,null,null,null,null,null,null,null,null,null,null,null,null,null,null,null,null,null,null,null,null,null,"2122 EL KANDOUSSI NACER",null,null,null,null,null,null,null,null,null,null,null,null,null,null,null,"2122 EL KANDOUSSI NACER",null,null,null,null,null,null,null,null,null,"2122 EL KANDOUSSI NACER",null,null,null,null,null,null,null,"2122 EL KANDOUSSI NACER",null,"2122 EL KANDOUSSI NACER",null,null,null,null,null,null,null,null,null,null,null,"2122 EL KANDOUSSI NACER",null,null,null,null,null,"2122 EL KANDOUSSI NACER",null,null,null,null,null,null,null,null,null,null,null,"2122 EL KANDOUSSI NACER",null,null,null,null,null,null,null,"2122 EL KANDOUSSI NACER",null,"2122 EL KANDOUSSI NACER",null,null,null,null,null,null,null,"2122 EL KANDOUSSI NACER",null,"2122 EL KANDOUSSI NACER",null,null,null,null,null,null,null,null,null,null,null,null,null,null,null,null,null,null,null,null,null,null,null,"2122 EL KANDOUSSI NACER",null,null,null,null,null,null,null,null,null,null,null,null,null,null,null,null,null,null,null,null,null,null,null,"3215 AOURAGH RACHID",null,null,null,null,null,null,null,null,null,null,null,"2122 EL KANDOUSSI NACER",null,null,null,null,null,null,null,null,null,null,null,null,null,"2122 EL KANDOUSSI NACER",null,null,null,null,null,null,null,null,null,null,null,null,null,null,null,null,null,null,null,"2122 EL KANDOUSSI NACER"]
[null,null,null,null,null,null,null,null,null,null,null,null,null,null,null,null,null,null,null,null,null,null,null,null,null,null,null,null,null,null,null,null,null,null,null,null,null,null,null,null,null,null,null,null,null,null,null,null,null,null,null,null,null,null,null,null,null,null,null,null,null,null,null,null,null,null,null,null,null,null,null,null,null,null,null,null,null,null,null,null,null,null,null,null,null,null,null,null,null,null,null,null,null,null,null,null,null,null,null,null,null,null,null,null,null,null,null,null,null,null,null,null,null,null,null,null,null,null,null,null,null,null,null,null,null,null,null,null,null,null,null,null,null,null,null,null,null,null,null,null,null,null,null,null,null,null,null,null,null,null,null,null,null,null,null,null,null,null,null,null,null,null,null,null,null,null,null,null,null,null,null,null,null,null,null,null,null,null,null,"3216 AZARIAHI SOUFIANE"]